Workbook

Sheet Meeting April 2024 (hidden)
B2: MEETING AND TRAINING IN APRIL
B3: DATE | C3: AGENDA | D3: NUMBER OF PEOPLE
B4: 2024-04-03 | C4: Finance meeting | D4: 5
C5: Task force meeting (Illegar miner) | D5: 15
B6: 2024-04-04 | C6: Task force meeting (Illegar miner) | D6: 20
B7: 2024-04-11 | C7: Province administration& Rutongo mines | D7: 10
B8: 22/4/2024 to 26/4/2024 | C8: Front line supervisory training | D8: 25
C9: Bobcat training | D9: 8
B10: 2024-04-23 | C10: SML (leadership training) | D10: 14
B11: 2024-04-26 | C11: Interview of subco | D11: 10
E12: Hano ni ya nama yaberaga muri boardroom abantu bagenda basimburana ntag nzi uko yitwa
B13: 2024-04-27 | C13: Bobcat training | D13: 8
B14: 29/04/2024 to 30/4/2024 | C14: Front line supervisory training | D14: 25
B15: 2024-04-29 | C15: Investigation of shooting incindent done by ISCO | D15: 8
B16: 2024-04-30 | C16: HIRA (Leadership training) | D16: 25

Sheet Guest in April (hidden)
B2: NAMES | C2: DEPARTMENT | D2: TIME IN - TIME OUT
B3: Quintin ensuing | D3: 7/4/2024 - 14/4/2024
B4: Quintin grix | D4: 7/4/2024 - 14/4/2024
B5: Jo daneel | C5: SHEC | D5: 8/4/2024 - 16/4/2024
B6: Johan albert | C6: Engeneering | D6: 15/4/2024 - 19/4/2024
B7: Fanie fereira | C7: HR | D7: 14/4/2024 - 5/5/2024
B8: Pieter | C8: HR | D8: 14/4/2024 - 5/5/2024
B9: Lina | C9: HR | D9: 14/4/2024 - 27/4/2024
B10: Chandela | C10: HR | D10: 22/4/2024 - 27/4/2024
B11: Gegary brooker | D11: 22/4/2024 - 5/5/2024
B12: Jaque botha | C12: SUPPLY CHAIN | D12: 21/4/2024 - 25/4/2024
B13: Edward | C13: Engeneering | D13: 22/4/2024 - 28/4/2024

Sheet Meeting May 2024 (hidden)
A2: MEETING AND TRAINING IN MAY
A3: DATE | B3: AGENDA | C3: NUMBER OF PEOPLE
A4: 29/04/2024 to 4/5/2024 | B4: Front line supervisory training | C4: 25
A5: 2024-05-03 | B5: Integrated T.S planning meeting | C5: 40
A6: 04/05/2024 AND 6/5/2024 | B6: Sampleling consultant meeting | C6: 10
A7: 2024-05-09 | B7: Sampleling consultant meeting | C7: 5
A8: 2024-05-10 | B8: Geologist meeting with consultant | C8: 9
A9: 2024-05-17 | B9: Visible felt leadership training | C9: 25
A10: 20/5/2024 to 24/5/2024 | B10: Front line supervisory training | C10: 26
A11: 2024-05-23 | B11: Supply chain visitors from Musha & ETI | C11: 6
B12: RMB inspection | C12: 17
A13: 2024-05-27 | B13: Global link solution | C13: 8
B14: IPRS visitors in mining | C14: 21
A15: 2024-05-29 | B15: Subcontractor Model review | C15: 19
A16: 27/5/2024 to 31/5/2024 | B16: Front line supervisory training | C16: 24

Sheet Guest in May 2024 (hidden)
B2: Guest in May 2024
B5: NAMES | C5: DEPARTMENT | D5: TIME IN - TIME OUT
B6: Fanie fereira | C6: HR | D6: 14/4/2024 - 5/5/2024
B7: Pieter | C7: HR | D7: 14/4/2024 - 5/5/2024
B8: Gegary brooker | C8: Tech service | D8: 22/4/2024 - 5/5/2024
B9: Siobhan joubert | C9: Tech service | D9: 2/5/2024 - 10/5/2024
B10: Andrew nel clay | C10: Tech service | D10: 2/5/2024 - 10/5/2024
B11: Clive brown | C11: Tech service | D11: 2/5/2024 - 10/5/2024
B12: Gerrit | C12: SHEC | D12: 5/5/2024 - 13/5/2024
B13: Jo Daneels | C13: SHEC | D13: 16/5/2024 - 19/5/2024
B14: Fanie fereira | C14: HR | D14: 18/5/2024 - 2/6/2024
B15: Rina muller | C15: HR | D15: 18/5/2024 - 2/6/2024

Sheet Meeting June 2024 (hidden)
A2: MEETING AND TRAINING IN JUNE
A3: DATE | B3: AGENDA | C3: NUMBER OF PEOPLE
A4: 2024-06-05 | B4: Rutongo mines special cell | C4: 26
A5: 2024-06-06 | B5: Visible felt leadership training | C5: 22
A6: 2024-06-07 | B6: RPF meeting with mayor | C6: 110
A7: 2024-06-10 | B7: Meeting of GM with engeneering department | C7: 12
A8: 10/6/2024 up to 15/6/2024 | B8: Blasting certificate programe training | C8: 26
B9: Bobcat training | C9: 6
A10: 2024-06-11 | B10: RWIMA and H.D.I meeting | C10: 150
A11: 2024-06-13 | B11: Subcontractor review | C11: 11
B12: Trynity Rutongo management meeting | C12: 8
B13: REWU representative meeting | C13: 11
A14: 17/6/2024 up to 21/6/2024 | B14: Blasting certificate programe training | C14: 26
A15: 2024-06-20 | B15: Minister of gender visit | C15: 50
B16: Ground control training | C16: 25
A17: 24/6/2024 up to 28/6/2024 | B17: Blasting certificate programe training | C17: 26
A18: 2024-06-25 | B18: Next step - Mining contractor review | C18: 14
A19: 2024-06-27 | B19: Rescue refresher | C19: 6

Sheet Guest June 2024 (hidden)
A2: Guest in June 2024
A5: NAMES | B5: DEPARTMENT | C5: TIME IN - TIME OUT
A6: Jeanette Erasmus | B6: SHEC | C6: 4/6/2024 - 8/6/2024
A7: Nadine coetzer | B7: SHEC | C7: 4/6/2024 - 8/6/2024
A8: Leon melville koekender | B8: SHEC | C8: 4/6/2024 - 8/6/2024
A9: Jo daneels | B9: SHEC | C9: 4/6/2024 - 8/6/2024
A10: Pieter albert | B10: SML | C10: 8/6/2024 - 15/6/2024
A11: Fanny ferreira | B11: SML | C11: 8/6/2024 - 29/6/2024
A12: Chandela | B12: SML | C12: 9/6/2024 - 16/6/2024
A13: Mike jacklin | B13: Procurement | C13: 15/06/2024 - 21/6/2024
A14: Gerrit ferreira | B14: SHEC | C14: 17/6/2024 - 23/6/2024
A15: Pieter albert | B15: SML | C15: 22/6/2024 -

Sheet Meeting August 2024 (hidden)
A2: MEETING AND TRAINING IN AUGUST 2024
A3: DATE | B3: AGENDA | C3: NUMBER OF PEOPLE
A4: 2024-08-01 | B4: CEO and HR manager meeting | C4: 10
A5: 5/8/2024 to 9/8/2024 | B5: Driver training | C5: 5
A6: 08/08/2024 to 9/8/2024 | B6: HOD training | C6: 17
A7: 2024-08-09 | B7: RMB inspection | C7: 13
A8: 12/08/2024 to 16/8/2024 | B8: Supervisory training | C8: 20
A9: 13/8/2024 to 14/8/2024 | B9: HOD training | C9: 17
A10: 2024-08-13 | B10: Ambasador visit | C10: 20
A11: 15/08/2024 to 16/2024 | B11: HOD training | C11: 14
A12: 19/8/2024 to 23/8/2024 | B12: Supervisory training | C12: 14
A13: 2024-08-20 | B13: GM meeting | C13: 10
A14: 2024-08-27 | B14: Michael meeting | C14: 6
B15: CEO meeting | C15: 8
A16: 2024-08-28 | B16: Performance management training | C16: 50
A17: 2024-08-30 | B17: Performance management training | C17: 40
B18: CEO meeting

Sheet Meeting Jully 2024 (hidden)
A2: MEETING AND TRAINING IN JULLY 2024
A3: DATE | B3: AGENDA | C3: NUMBER OF PEOPLE
A4: 2024-07-02 | B4: HIRA | C4: 15
A5: 2024-07-02 | B5: A.P handover | C5: 20
A6: 2024-07-04 | B6: HIRA | C6: 10
A7: 2024-07-11 | B7: HOD Training | C7: 25
A8: 2024-07-12 | B8: HOD Training | C8: 20
A9: 2024-07-17 | B9: HOD Training | C9: 20
A10: 2024-07-18 | B10: GM meeting | C10: 14
B11: HOD Training | C11: 15
A12: 2024-07-19 | B12: Skills development summit | C12: 50
A13: 22/7/2024 - 26/7/2024 | B13: Flontline supervisory training | C13: 21
A14: 2024-07-22 | B14: CEO meeting | C14: 15
A15: 29/7/2024 -2/8/2024 | B15: Flontline supervisory training | C15: 25
A16: 2024-07-29 | B16: Group leadership | C16: 16
A17: 2024-07-31 | B17: Task force in illegal mining activities | C17: 14

Sheet Guest Jully 2024 (hidden)
A2: Guest in Jully 2024
A5: NAMES | B5: DEPARTMENT | C5: TIME IN - TIME OUT
A6: Chandela | B6: SML | C6: 07/07/2024 - 16/7/2024
A7: Rina muller | B7: SML | C7: 8/7/2024 - 20/7/2024
A8: Pieter albert | B8: SML | C8: 14/7/2024 - 31/7/2024
A9: Zack kaemmerlen | C9: 16/7/2024 - 31/7/2024
A10: Graham mark | C10: 23/7/2024 - 27/7/2024
A11: Luca McCormick | C11: 23/07/2024 - 31/7/2024
A12: Jo daneels | B12: SHEC | C12: 23/7/2024 - 3/8/2024
A13: Quinton | B13: TECH.SERV | C13: 25/7/2024 - 26/7/2024
A14: Fanie ferreira | B14: SML | C14: 27/7/2024 - 24/8/2024
A15: Gerrit ferreira | B15: SHEC | C15: 28/7/2024 - 10/8/2024

Sheet Guest August 2024 (hidden)
A2: NAMES | B2: DEPARTMENT | C2: TIME IN - TIME OUT
A3: Fanie ferreira | B3: SML | C3: 27/7/2024 - 24/8/2024
A4: Gerrit ferreira | B4: SHEC | C4: 28/7/2024 - 10/8/2024
A5: Abdallah chandela | B5: SML | C5: 4/8/2024 - 10/8/2024
A6: Pieter | B6: SML | C6: 11/8/2024 - 21/8/2024
A7: Lina muller | B7: SML | C7: 7/8/2024 - 17/8/2024
A8: Gerrit ferreira | B8: SHEC | C8: 25/8/2024 - 7/9/ 2024
A9: Michael | B9: Supply chain | C9: 26/8/2024 - 3/9/2024
A10: Andrew krugger | B10: Finance | C10: 26/8/2024 - 3/9/2024
A11: JO danniel | B11: SHEC | C11: 30/8/2024 - 5/9/2024

Sheet Meeting September 2024 (hidden)
B2: MEETING AND TRAINING IN SEPTEMBER 2024
B3: DATE | C3: AGENDA | D3: NUMBER OF PEOPLE
B4: 2/9/2024 - 3/9/2024 | C4: Bobcat operational training | D4: 11
B5: 2/9/2024 - 4/9/2024 | C5: Management meeting | D5: 20
B6: 4/9/2024 - 5/9/2024 | C6: Bobcat operational training | D6: 13
B7: 2024-04-09 | C7: RMB visit | D7: 24
B8: 2024-05-09 | C8: Management meeting | D8: 5
B9: 6/9/2024 - 7/9/2024 | C9: Bobcat operational training | D9: 7
B10: 2024-06-09 | C10: Mine rescue refreshment training | D10: 15
B11: 16/9/2024 - 20/9/2024 | C11: Supervisory program training | D11: 23
B12: 17/9/2024 | C12: CEO Meeting | D12: 7
B13: 20/9/2024 | C13: Mine rescue refreshment training | D13: 8
B14: 23/9/2024 - 27/9/2024 | C14: Supervisory program training | D14: 26
B15: 25/9/2024 | C15: Planning meeting | D15: 10
B16: 26/9/2025 | C16: RMB and Environment meeting | D16: 14
B17: 27/9/2024 | C17: Mine rescue refreshment training | D17: 16

Sheet Guest September 2024 (hidden)
B3: NAMES | C3: DEPARTMENT | D3: TIME IN - TIME OUT
B4: Chandela | C4: SML | D4: 1/9/2024 - 8/9/2024
B5: Clive Brown | C5: Tech.service | D5: 2/9/2024 -5/9/2024
B6: Greg Brooker | C6: Tech.service | D6: 2/9/2024 -5/9/2024
B7: Freddy Chikwiri | C7: Tech.service | D7: 8/9/2024 - 14/9/2024
B8: Pieter Albert | C8: SML | D8: 15/9/2024 - 28/9/2024
B9: Dusty | C9: SML | D9: 15/9/2024 - 28/9/2024
B10: Christopher Gerard o' Neill | C10: Tech.service | D10: 16/9/2024 - 18/10/2024
B11: William emmanuel | C11: Engeneering | D11: 22/9/2024 -
B12: chandela | C12: SML | D12: 29/9/2024 - 12/10/2024
B13: Lina Muller | C13: SML | D13: 29/9/2024 - 8/10/ 2024
B14: Gerrit Fereira | C14: SHEC | D14: 30/9/2024 -

Sheet Meeting October 2024 (hidden)
B2: MEETING AND TRAINING IN OCTOBER 2024
B3: DATE | C3: AGENDA | D3: NUMBER OF PEOPLE
B4: 2024-03-10 | C4: German Minister visit | D4: 15
B5: 3/10/2024 - 4/10/2024 | C5: POC Head of Department training | D5: 15
B6: 7/10/2024 - 9/10/2024 | C6: Locomotive Operator training | D6: 13
B7: 10/10/2024 - 11/10/2024 | C7: Locomotive Operator Assistant training | D7: 13
B8: 14/10/2024 - 18/10/2024 | C8: Frontline Supervisory program Group 7 phaseB | D8: 14
B9: 21/10/2024 - 25/10/2024 | C9: Frontline Supervisory program Group 6 phaseB | D9: 21
B10: 25/10/2024 | C10: Leadership Meeting | D10: 20
B11: 28/10/2024 - 30/10/2024 | C11: Explosives inspection | D11: 15

Sheet Guest October 2024 (hidden)
B3: NAMES | C3: DEPARTMENT | D3: TIME IN - TIME OUT
B4: Chandela Abdarhan | C4: SML Change | D4: 6/10/2024 - 12/10/2024
B5: Pieter Albert | C5: SML Change | D5: 13/10/2024 - 26/10/2024
B6: Frans | C6: SML Change | D6: 13/10 2024 - 26/10/2024
B7: Bonitha botha | C7: Engeneering | D7: 14/10/2024 -17/10/2024
B8: Quinton | C8: Mining | D8: 19/10/2024 - 22/10/2024
B9: Chrive brown | C9: T.service | D9: 19/10/2024 - 26/10/2024
B10: Shane Ryan | C10: C.O.O | D10: 23/10/2024 -

Sheet Meeting November 2024 (hidden)
B2: MEETING AND TRAINING IN NOVEMBER 2024
B3: DATE | C3: AGENDA | D3: NUMBER OF PEOPLE
B4: 4/11/2024 - 8/11/2024 | C4: Blasting certificate pilot program | D4: 23
B5: 5/11/2024 - 6/11/2024 | C5: Budget review | D5: 25
B6: 11/11/2024 - 15/11/2024 | C6: Blasting certificate pilot program | D6: 24
B7: 2024-11-11 | C7: HIRA | D7: 6
B8: 13/11/2024 | C8: Geologist session | D8: 13
B9: 18/11/2024 - 22/11/2024 | C9: Blasting certificate pilot program | D9: 24
B10: 18/11/2024 | C10: RRA Auditor | D10: 10
C11: AP trainning | D11: 18
B12: 20/11/2024 | C12: Budget review | D12: 10
B13: 22/11/2024 | C13: Planning meeting | D13: 10
B14: 25/11/2024 - 29/11/2024 | C14: Supervisory training | D14: 18
B15: 27/11/2024 - 30/11/2024 | C15: " | D15: 18
C16: "

Sheet Guest November 2024 (hidden)
B3: NAMES | C3: DEPARTMENT | D3: TIME IN - TIME OUT
B4: Pieter Albert | C4: SML Change | D4: 10/11/2024 -
B5: Fanie ferreira | C5: SML Change | D5: 3/11/2024 - 28/11/2024
B6: Siobhan jourbert | C6: Tech. service | D6: 12/11/2024 - 16/11/2024
B7: William nyanungu | C7: Engeneering | D7: 22/9/2024 -
B8: Esperance E.T.I | C8: OHS | D8: 24/11/2024 -
B9: Gerrit ferreira | C9: OHS | D9: 30/9/2024 -
B10: Shane Ryan | C10: C.O.O | D10: 29/10/2024 -

Sheet Meeting December 2024 (hidden)
B2: MEETING AND TRAINING IN DECEMBER 2024
B3: DATE | C3: AGENDA | D3: NUMBER OF PEOPLE | E3: CONSUMPTION
B4: 2024-02-12 | C4: Task force | D4: 20 | E4: Lunch
B5: 2024-05-12 | C5: POLC | D5: 8 | E5: Lunch, Snacks, Softdrink
B6: 11/12/2024 to 12/12/2024 | C6: Safety training | D6: 10 | E6: Lunch
B7: 17/12/2024 | C7: Budget review | D7: 5 | E7: Lunch
B8: 16/12/2024 to 17/12/2024 | C8: Stock take | D8: 15 | E8: Lunch, Softdrink
B9: 18/12/2024 | C9: ESIA Disclosure on local level | D9: 30 | E9: Lunch,Snacks ,Beers
B10: 18/12/2024 to 20/12/2024 | C10: Bobcat operator training | D10: 14 | E10: Lunch
B11: 19/12/2024 | C11: End month review and planning | D11: 12 | E11: Lunch
B12: 20/12/2024 | C12: Visible felt leadership | D12: 17 | E12: Lunch
B18: DATE | C18: CONSUMPTION | D18: NUMBER OF PEOPLE | E18: UNITY PRICE | F18: TOTAL AMOUNT
B19: 2024-02-12 | C19: Lunch for Task force | D19: 20 | E19: 5000 | F19: =D19*E19 -> 100000
C20: Soft drinks forTask force | D20: 20 | E20: 1200 | F20: =D20*E20 -> 24000
B21: 2024-03-12 | C21: Lunch for Guest in camp | D21: 21 | E21: 4000 | F21: =D21*E21 -> 84000
C22: Dinner for Guest in camp | D22: 3 | E22: 6000 | F22: 18000
B23: 2024-05-12 | C23: Lunch for POLC | D23: 8 | E23: 5000 | F23: 40000
C24: Snacks for POLC | D24: 1 | E24: 15000 | F24: 15000
C25: Soft drinks for POLC | D25: 8 | E25: 1200 | F25: 9600
B26: 2024-11-12 | C26: Lunch for safety training for (2 days) | D26: 20 | E26: 4000 | F26: 80000
B27: 2024-12-12 | C27: Accomodation for safety Officer(E.T.I) | D27: 10 | E27: 15000 | F27: 150000
C28: Lunch for 2 safety Officer(E.T.I) 10 days | D28: 17 | E28: 3000 | F28: 51000
C29: Dinner for Safety officer (E.T.I) | D29: 10 | E29: 3000 | F29: 30000
B30: 16/12/2024 | C30: Lunch for stock take (2 days) | D30: 30 | E30: 4000 | F30: 120000
C31: Soft drinks for Stock take (2 days) | D31: 30 | E31: 1200 | F31: 36000
B32: 17/12/2024 | C32: Lunch for Budget review | D32: 5 | E32: 4000 | F32: 20000
C33: Water for Budget review | D33: 1 | E33: 19200 | F33: 19200
B34: 18/12/2024 | C34: Lunch for ESIA Disclosure on Local Level | D34: 30 | E34: 5000 | F34: 150000
C35: Snacks for ESIA Disclosure on Local Level | D35: 1 | E35: 47000 | F35: 47000
C36: Beers and Softdrink | D36: 1 | E36: 73500 | F36: 73500
C37: Lunch for Bobcat training (3 days) | D37: 42 | E37: 4000 | F37: 168000
B38: 19/12/2024 | C38: Lunch for End month review & planning | D38: 12 | E38: 4000 | F38: 48000
B39: 20/12/2024 | C39: Lunch for Visible felt leadership training | D39: 17 | E39: 4000 | F39: 68000
B40: 23/12/2024 | C40: Lunch for G.M visitor | D40: 4 | E40: 3000 | F40: 12000
C41: Soft drink for GM visitor | D41: 4 | E41: 1200 | F41: 4800
C42: Function for Recognition of MasoroTunnel | D42: 1 | E42: 1204300 | F42: 1204300
B43: 26/12/2024 | C43: Refreshments for Engineering Support at night(breakdown) | D43: 1 | E43: 84800 | F43: 84800
B44: 30/12/2024 | C44: Lunch for Auditor | D44: 4 | E44: 3000 | F44: 12000
C45: Soft drink for Aditor | D45: 3 | E45: 1200 | F45: 3600
E47: Total | F47: =SUM(F19:F45) -> 2672800

Sheet Guest December 2024 (hidden)
B2: NAMES | C2: DEPARTMENT | D2: TIME IN - TIME OUT
B3: Pieter Albert | C3: SML Change | D3: 11/12/2024 - 12/12/2024
B4: Lina muller | C4: SML Change | D4: 4/12/2024 - 12/12/2024
B5: Siobhan jourbert | C5: Tech. service | D5: 3/12/2024 - 13/12/2024
B6: William nyanungu | C6: Engeneering | D6: 22/9/2024 - 12/12/2024
B7: Esperance E.T.I | C7: OHS | D7: 13/12/2024 - 20/12/2024
B8: Gerrit ferreira | C8: OHS | D8: 30/9/2024 - 16/12/2024
B9: Shane Ryan | C9: C.O.O | D9: 29/10/2024 - 20/12/2024
B10: Chistopher | C10: Mining | D10: 30/11/2024 - 20/12/2024
B11: Joanne Daneel | C11: SHEC | D11: 2/12/2024 - 12/12/2024
B12: Chandela | C12: SML Change | D12: 17/12/2024 - 21/12/2024

Sheet Guest January 2025 (hidden)
B2: NAMES | C2: DEPARTMENT | D2: TIME IN - TIME OUT
B3: William nyanungu | C3: Engeneering | D3: 2/1/2025 - up to now
B4: Gerrit ferreira | C4: OHS | D4: 8/1/2025 - 29/1/2025
B5: Siobhan | C5: MRM | D5: 13/1/2025 - 15/1/2025
B6: Chikwiri | C6: MRM | D6: 13/1/2025 -15/1/2025
B7: Joanne daneel | C7: SHEC | D7: 13/1/2025 - 21/1/2025
B8: (2)Visitor of ETEK | C8: SHEC | D8: 15/1/2025 - 16/1/2025
B9: (2) Visitor of SRA | C9: SHEC | D9: 16/1/2025 - 17/1/2025
B10: Timothy makubo | C10: Supply chain | D10: 18/1/2025 - 30/4/2025
B11: Shane ryan | C11: C.O.O | D11: 21/1/2025 - 31/1/2025
B12: Siobhan | C12: MRM | D12: 23/1/2025 - 24/1/2025
B13: Pieter Albert | C13: H.R | D13: 26/1/2025 -
B14: Frans | C14: H.R | D14: 26/1/2025 -

Sheet Meeting January 2025 (hidden)
B2: MEETING AND TRAINING IN JANUARY 2025
B3: DATE | C3: AGENDA | D3: NUMBER OF PEOPLE | E3: CONSUMPTION
B4: 2025-03-01 | C4: Mine planning | D4: 15 | E4: Break fast, Lunch
B5: 20/1/2025 | C5: Budget review | D5: 12 | E5: Break fast, Lunch
C6: Values ,Vision and Performance management training | D6: 33 | E6: Break fast, Lunch
B7: 27/1/2025 to 31/1/2025 | C7: Supervisory programme Phase B Group 8 training | D7: 18 | E7: Break fast, Lunch
B8: 30/1/2025 | C8: Site store Assistant training | D8: 26 | E8: Break fast, Lunch
B9: 31/1/2025 | C9: Geologist Training | D9: 15 | E9: Break fast, Lunch
C10: Engagement with GM,HODs, HR department and REWU | D10: 40 | E10: Beer and softdrink
C14: CONSUMPTION | D14: NUMBER OF PEOPLE | E14: UNITY PRICE | F14: TOTAL AMOUNT
C15: Lunch for The guest in camp(Weekend)(kawunga &meat) | D15: 1 | E15: 6000 | F15: =E15*D15 -> 6000
C16: Lunch for the training | D16: 225 | E16: 4000 | F16: =E16*D16 -> 900000
C17: Lunch for the visitor | D17: 83 | E17: 3000 | F17: 249000
C18: Lunch for The guest in camp(Weekend)(Chips,meat & dessert) | D18: 5 | E18: 5000 | F18: 25000
C19: Softdrinks for the Guests and visitors | D19: 134 | E19: 1200 | F19: 160800
C20: Softdrinks and beer for Mining plan | D20: 1 | E20: 230100 | F20: 230100
C21: Break fast for group finance training | D21: 4 | E21: 3500 | F21: 14000
C22: Dinner for The guest in camp(Fish burger) | D22: 20 | E22: 8000 | F22: 160000
C23: Softdrinks and beer for The guest in camp | D23: 1 | E23: 51300 | F23: 51300
C24: Dinner for The guest in camp( chicken burger) | D24: 32 | E24: 6500 | F24: 208000
C25: Dinner for The guest in camp( Fish brochette, chips) | D25: 3 | E25: 9500 | F25: 28500
C26: Lunch for The guest in camp( Fish and chips) | D26: 2 | E26: 12500 | F26: 25000
C27: Dinner for The guest in camp( Rabit and chips) | D27: 3 | E27: 10500 | F27: 31500
C28: Function for Recognition of KaramboTunnel | D28: 1 | E28: 1567600 | F28: 1567600
C29: Engagement with GM,HODs, HR department and REWU | D29: 1 | E29: 217300 | F29: 217300
C30: Accomodation for Supervisory training(5 days) | D30: 30 | E30: 15000 | F30: 450000
E32: TOTAL | F32: =SUM(F15:F30) -> 4324100
B34: DATE | C34: CONSUMPTION | D34: NUMBER OF PEOPLE | E34: UNITY PRICE | F34: TOTAL AMOUNT
B35: 2025-03-01 | C35: Lunch for mine planner | D35: 15 | E35: 4000 | F35: =D35*E35 -> 60000
C36: Lunch for Auditor | D36: 4 | E36: 3000 | F36: =D36*E36 -> 12000
C37: Soft drink for Auditor | D37: 4 | E37: 1200 | F37: 4800
C38: Drinks for Mining plan | D38: 1 | E38: 230100 | F38: 230100
B39: 2025-08-01 | C39: Lunch for Environment Visitor | D39: 5 | E39: 3000 | F39: 15000
C40: Soft drink for Environment Visitor | D40: 6 | E40: 1200 | F40: 7200
B41: 2025-10-01 | C41: Breakfast for finance group training | D41: 4 | E41: 3500 | F41: 14000
C42: Lunch for finance group training | D42: 3 | E42: 3000 | F42: 9000
C43: Soft drink for finance group training | D43: 2 | E43: 1200 | F43: 2400
B44: 2025-11-01 | C44: Dinner for The guest in camp | D44: 1 | E44: 8000 | F44: 8000
B45: 13/1/2025 | C45: Lunch for (ETEK) GUEST | D45: 5 | E45: 5000 | F45: 25000
C46: Lunch for The guest in camp | D46: 3 | E46: 3000 | F46: 9000
C47: Drinks for the guest in camp | D47: 1 | E47: 13800 | F47: 13800
C48: Water for (ETEK) GUEST | D48: 2 | E48: 1200 | F48: 2400
C49: Dinner for The guest in camp( chicken) | D49: 1 | E49: 6500 | F49: 6500
C50: Dinner for The guest in camp(Fish, Rabbit) | D50: 3 | E50: 9500 | F50: 28500
B51: 14/1/2025 | C51: Lunch for The guest in camp | D51: 3 | E51: 3000 | F51: 9000
C52: Softdrink for The guest in camp | D52: 2 | E52: 1200 | F52: 2400
C53: Dinner for The guest in camp( chicken) | D53: 5 | E53: 6500 | F53: 32500
C54: Dinner for The guest in camp( Fish) | D54: 1 | E54: 8000 | F54: 8000
C55: Softdrink and beer for the guest in camp | D55: 1 | E55: 12700 | F55: 12700
B56: 15/1/2025 | C56: Lunch for The guest in camp | D56: 2 | E56: 3000 | F56: 6000
C57: Dinner for The guest in camp( chicken) | D57: 3 | E57: 6500 | F57: 19500
C58: Dinner for The guest in camp( Fish) | D58: 1 | E58: 8000 | F58: 8000
C59: Drinks for The guest in camp | D59: 1 | E59: 10000 | F59: 10000
B60: 16/1/2025 | C60: Breakfast for (Land acquisition) Guest | D60: 3 | E60: 6500 | F60: 19500
C61: Lunch for (Land acquisition) Guest | D61: 4 | E61: 3000 | F61: 12000
C62: Softdrink for (Land acquisition) Guest | D62: 6 | E62: 1200 | F62: 7200
C63: Dinner for The guest in camp( chicken) | D63: 2 | E63: 6500 | F63: 13000
B64: 17/1/2025 | C64: Lunch for The guest in camp | D64: 5 | E64: 3000 | F64: 15000
C65: Drinks for The guest in camp | D65: 1 | E65: 14800 | F65: 14800
C66: Dinner for The guest in camp( chicken) | D66: 2 | E66: 6500 | F66: 13000
B67: 18/1/2025 | C67: Dinner for The guest in camp( chicken) | D67: 2 | E67: 6500 | F67: 13000
C68: Softdrink for The guest in camp | D68: 2 | E68: 1200 | F68: 2400
B69: 19/1/2025 | C69: Lunch for The guest in camp(Weekend) | D69: 2 | E69: 12500 | F69: 25000
C70: Lunch for The guest in camp(ugali ,meat) (Weekend) | D70: 1 | E70: 3000 | F70: 3000
C71: Softdrink for The guest in camp | D71: 5 | E71: 1200 | F71: 6000
B72: 20/1/2025 | C72: Dinner for The guest in camp( Spagetti bolognaise) | D72: 2 | E72: 8000 | F72: 16000
C73: Dinner for The guest in camp( Fish brochette, chips) | D73: 1 | E73: 10500 | F73: 10500
C74: Lunch for The guest in camp | D74: 1 | E74: 3000 | F74: 3000
C75: Softdrink for The guest in camp | D75: 3 | E75: 1200 | F75: 3600
C76: Lunch for budget review | D76: 12 | E76: 4000 | F76: 48000
C77: Softdrink for budget review | D77: 12 | E77: 1200 | F77: 14400
C78: Lunch for Values ,Vision and Performance management training | D78: 33 | E78: 4000 | F78: 132000
B79: 21/1/2025 | C79: Lunch for The guest in camp | D79: 1 | E79: 3000 | F79: 3000
C80: Softdrink for The guest in camp | D80: 5 | E80: 1200 | F80: 6000
C81: Dinner for The guest in camp( Spagetti bolognaise) | D81: 1 | E81: 8000 | F81: 8000
C82: Dinner for The guest in camp( chicken) | D82: 1 | E82: 6500 | F82: 6500
B83: 22/1/2025 | C83: Lunch for The guest in camp | D83: 1 | E83: 3000 | F83: 3000
C84: Dinner for The guest in camp( Fish brochette, chips) | D84: 3 | E84: 8000 | F84: 24000
C85: Dinner for The guest in camp( chicken) | D85: 1 | E85: 6500 | F85: 6500
C86: Softdrink for The guest in camp | D86: 6 | E86: 1200 | F86: 7200
B87: 23/1/2025 | C87: Lunch for CFO | D87: 1 | E87: 3000 | F87: 3000
C88: Softdrink for CFO | D88: 1 | E88: 1200 | F88: 1200
C89: Lunch for Auditor(Finance) | D89: 4 | E89: 3000 | F89: 12000
C90: Lunch for The guest in camp | D90: 2 | E90: 3000 | F90: 6000
C91: Dinner for The guest in camp( Spagetti bolognaise) | D91: 4 | E91: 8000 | F91: 32000
C92: Dinner for The guest in camp( chicken) | D92: 1 | E92: 6500 | F92: 6500
C93: Softdrink for The guest in camp | D93: 7 | E93: 1200 | F93: 8400
B94: 24/1/2025 | C94: Lunch for CFO | D94: 1 | E94: 3000 | F94: 3000
C95: Softdrink for CFO | D95: 1 | E95: 1200 | F95: 1200
C96: Lunch for The guest in camp | D96: 1 | E96: 3000 | F96: 3000
C97: Dinner for The guest in camp( chicken and sweetfood) | D97: 2 | E97: 10500 | F97: 21000
C98: Dinner for The guest in camp( Beef cheese) | D98: 1 | E98: 6500 | F98: 6500
C99: Softdrink for The guest in camp | D99: 3 | E99: 1200 | F99: 3600
B100: 25/1/2025 | C100: Function for Recognition of KaramboTunnel | D100: 1 | E100: 1567600 | F100: 1567600
C101: Lunch for The guest in camp | D101: 1 | E101: 6000 | F101: 6000
C102: Dinner for The guest in camp( Beef cheese) | D102: 1 | E102: 6500 | F102: 6500
C103: Softdrink for The guest in camp | D103: 2 | E103: 1200 | F103: 2400
B104: 26/1/2025 | C104: Dinner for The guest in camp( chicken) | D104: 1 | E104: 6500 | F104: 6500
C105: Lunch for The guest in camp(Beef burger) | D105: 1 | E105: 6500 | F105: 6500
C106: Dinner for Supervisory training(5 days) | D106: 29 | E106: 4000 | F106: 116000
C107: Dinner for The guest in camp( Fish burger) | D107: 2 | E107: 8000 | F107: 16000
C108: Softdrink for The guest in camp | D108: 3 | E108: 1200 | F108: 3600
C109: Accomodation for Supervisory training(5 days) | D109: 30 | E109: 15000 | F109: 450000
B110: 27/1/2025 | C110: Lunch for Supervisory training(5 days) | D110: 90 | E110: 4000 | F110: 360000
C111: Lunch for Procurement (visitor) | D111: 5 | E111: 4000 | F111: 20000
C112: Lunch for The guest in camp | D112: 1 | E112: 3000 | F112: 3000
C113: Softdrinks for Procurement (visitor) | D113: 5 | E113: 1200 | F113: 6000
C114: Softdrink for The guest in camp | D114: 5 | E114: 1200 | F114: 6000
C115: Dinner for The guest in camp( Fish) | D115: 2 | E115: 8000 | F115: 16000
C116: Dinner for The guest in camp( Spagetti bolognaise) | D116: 2 | E116: 8000 | F116: 16000
C117: Dinner for The guest in camp( Beef cheese) | D117: 1 | E117: 6500 | F117: 6500
C118: GM lunch | D118: 1 | E118: 3000 | F118: 3000
C119: Soft drinks (Big fanta) | D119: 1 | E119: 3000 | F119: 3000
B120: 28/1/2025 | C120: Lunch for SHEC committe | D120: 13 | E120: 3000 | F120: 39000
C121: Softdrinks for SHEC committee | D121: 13 | E121: 1200 | F121: 15600
C122: Lunch for The guest in camp | D122: 1 | E122: 3000 | F122: 3000
C123: Dinner for The guest in camp(igisafuriya) | D123: 1 | E123: 6500 | F123: 6500
C124: Dinner for The guest in camp( Fish) | D124: 1 | E124: 8000 | F124: 8000
C125: Dinner for The guest in camp( chicken) | D125: 1 | E125: 6500 | F125: 6500
B126: 29/1/2025 | C126: Lunch for The guest in camp | D126: 1 | E126: 3000 | F126: 3000
C127: Dinner for The guest in camp( chicken) | D127: 1 | E127: 6500 | F127: 6500
C128: Softdrink for The guest in camp | D128: 5 | E128: 1200 | F128: 6000
B129: 30/1/2025 | C129: Lunch for The guest in camp | D129: 1 | E129: 3000 | F129: 3000
C130: Dinner for The guest in camp( chicken) | D130: 2 | E130: 6500 | F130: 13000
C131: Softdrink for The guest in camp | D131: 7 | E131: 1200 | F131: 8400
C132: Site store Assistant training | D132: 26 | E132: 4000 | F132: 104000
B133: 31/1/2025 | C133: Geologist Training | D133: 15 | E133: 4000 | F133: 60000
C134: Engagement with GM,HODs, HR department and REWU | D134: 1 | E134: 217300 | F134: 217300
C135: Lunch for CFO | D135: 1 | E135: 3000 | F135: 3000
C136: Softdrink for CFO | D136: 1 | E136: 1200 | F136: 1200
C137: Lunch for GM visitor (Deputy) | D137: 20 | E137: 3000 | F137: 60000
C138: Softdrink for GM visitor (Deputy) | D138: 20 | E138: 1200 | F138: 24000
C139: Lunch for The guest in camp | D139: 1 | E139: 3000 | F139: 3000
C140: Dinner for The guest in camp( Beef ) | D140: 1 | E140: 6500 | F140: 6500
C141: Softdrink for The guest in camp | D141: 6 | E141: 1200 | F141: 7200
E143: Total | F143: =SUM(F35:F141) -> 4324100

Sheet Meeting February 2025 (hidden)
B2: MEETING AND TRAINING IN FEBRUARY 2025
B3: DATE | C3: AGENDA | D3: NUMBER OF PEOPLE | E3: CONSUMPTION
B4: 4/2/2025 to 8/2/2025 | C4: Blasting assistant training | D4: 22 | E4: Breakfast,lunch
C5: Safety representative training | D5: 23 | E5: Breakfast,lunch
B6: 10/2/2025 to 11/2/2025 | C6: Blasting assistant training | D6: 21 | E6: Breakfast,lunch
B7: 17/2/2025 to 18/2/2025 | C7: PPE & Hand tools training | D7: 14 | E7: Breakfast,lunch
B8: 20/2/2025 | C8: HIRA training | D8: 9 | E8: Breakfast,lunch
B9: 21/2/2025 | C9: SHEC Summit | D9: 75 | E9: Breakfast,lunch, drinks& dinner
B10: 24/2/2025 to 25/2/2025 | C10: Accident/incident training | D10: 21 | E10: Breakfast,lunch
B11: 26/2/2025 | C11: Gamiko visit | D11: 18 | E11: Breakfast,lunch
C12: Look out /Tag out | D12: 14 | E12: Breakfast,lunch
B13: 27/2/2025 to 28/2/2025 | C13: 5 X S (S: Sort, Set, Shine, Standardize & Sustain) Engineering Training | D13: 8 | E13: Breakfast,lunch
C16: CONSUMPTION | D16: NUMBER OF PEOPLE | E16: UNITY PRICE | F16: TOTAL AMOUNT
C17: Soft drink for the guest in camp | D17: 1 | E17: 1800 | F17: =D17*E17 -> 1800
C18: Softdrinks for the Guests and visitors | D18: 80 | E18: 1200 | F18: =D18*E18 -> 96000
C19: Lunch for the Guest & visitor | D19: 41 | E19: 3000 | F19: 123000
C20: Lunch for panel of exam in Engeneering | D20: 4 | E20: 3500 | F20: 14000
C21: Lunch for all trainings | D21: 336 | E21: 4000 | F21: 1344000
C22: Toilet paper | D22: 5 | E22: 4500 | F22: 22500
C23: Lunch for GM visitor | D23: 5 | E23: 5000 | F23: 25000
C24: Drinks for GM visitors | D24: 1 | E24: 103900 | F24: 103900
C25: Dinner for the guest in camp | D25: 35 | E25: 8000 | F25: 280000
C26: Dinner for the guest in camp(Beef Brochette& chips) | D26: 2 | E26: 9500 | F26: 19000
C27: Dinner for the guest in camp(Brochette& chips) | D27: 1 | E27: 11000 | F27: 11000
C28: Dinner for the guest in camp(Half chiken &chips) | D28: 2 | E28: 13500 | F28: 27000
C29: Refreshment for Football prayer | D29: 1 | E29: 96000 | F29: 96000
C30: Consumption for SHEC Summit(breakfast,lunch&beer) | D30: 1 | E30: 2914800 | F30: 2914800
E32: Total | F32: =SUM(F17:F30) -> 5078000
B36: DATE | C36: CONSUMPTION | D36: NUMBER OF PEOPLE | E36: UNITY PRICE | F36: TOTAL AMOUNT
B38: 2025-01-02 | C38: Lunch for the guest in camp( Potatoes & beef) | D38: 1 | E38: 4000 | F38: =D38*E38 -> 4000
C39: Dinner for the guest in camp(Beef burger) | D39: 1 | E39: 8000 | F39: =D39*E39 -> 8000
C40: Toilet paper | D40: 5 | E40: 4500 | F40: 22500
C41: Soft drink for the guest in camp | D41: 2 | E41: 1200 | F41: 2400
B42: 2025-02-02 | C42: Dinner for the guest in camp(Fish & chips) | D42: 2 | E42: 8000 | F42: 16000
C43: Soft drink for the guest in camp | D43: 2 | E43: 1200 | F43: 2400
B44: 2025-03-02 | C44: Dinner for the guest in camp(Fish vegetables) | D44: 3 | E44: 8000 | F44: 24000
C45: Dinner for the guest in camp(Fish burger) | D45: 1 | E45: 8000 | F45: 8000
B46: 2025-04-02 | C46: Blasting assistant training(22 peoples for 5 days) | D46: 110 | E46: 4000 | F46: 440000
C47: Safety representative training (23 peoples for 4 days) | D47: 92 | E47: 4000 | F47: 368000
C48: Dinner for the guest in camp(Fish vegetables) | D48: 2 | E48: 8000 | F48: 16000
C49: Dinner for the guest in camp(Chiken burger) | D49: 1 | E49: 8000 | F49: 8000
C50: Drinks for the guest in camp | D50: 1 | E50: 1000 | F50: 1000
B51: 2025-06-02 | C51: Drinks for GM visitors | D51: 1 | E51: 6500 | F51: 6500
C52: Dinner for the guest in camp(Fish & chips) | D52: 1 | E52: 8000 | F52: 8000
C53: Soft drink for the guest in camp | D53: 1 | E53: 1200 | F53: 1200
B54: 2025-07-02 | C54: Dinner for the guest in camp(Spagett bolognesse) | D54: 1 | E54: 8000 | F54: 8000
C55: Dinner for the guest in camp(Fish vegetables) | D55: 1 | E55: 8000 | F55: 8000
C56: Soft drink for the guest in camp | D56: 2 | E56: 1200 | F56: 2400
C57: Lunch for musha driver | D57: 1 | E57: 3000 | F57: 3000
C58: Refreshment for Football prayer | D58: 1 | E58: 96000 | F58: 96000
B59: 2025-08-02 | C59: Dinner for COO( Fish chips & salade) | D59: 1 | E59: 8000 | F59: 8000
B60: 2025-10-02 | C60: Blasting assistant training(21 peoples for 2 days) | D60: 42 | E60: 4000 | F60: 168000
C61: Lunch for visitor from Musha | D61: 3 | E61: 3000 | F61: 9000
C62: Soft drink for visitor from Musha | D62: 3 | E62: 1200 | F62: 3600
C63: Drinks for GM visitors | D63: 1 | E63: 31100 | F63: 31100
C64: Softdrinks for ESSI Nyamirambo visit | D64: 26 | E64: 1200 | F64: 31200
C65: Dinner for the guest in camp(Brochette& chips) | D65: 1 | E65: 9500 | F65: 9500
C66: Soft drink for the guest in camp | D66: 1 | E66: 1200 | F66: 1200
B67: 2025-11-02 | C67: Lunch for panel of ambulance driver exam | D67: 4 | E67: 3000 | F67: 12000
C68: Softdrinks for panel of ambulance driver exam | D68: 4 | E68: 1200 | F68: 4800
C69: Lunch for COO | D69: 1 | E69: 3000 | F69: 3000
C70: Dinner for COO( Spaghetti bolognesse) | D70: 1 | E70: 8000 | F70: 8000
C71: Lunch for 2 driver from musha | D71: 2 | E71: 3000 | F71: 6000
B72: 2025-12-02 | C72: Lunch for panel of exam in Engeneering | D72: 4 | E72: 3500 | F72: 14000
C73: Lunch for finance visitor | D73: 3 | E73: 3000 | F73: 9000
C74: Lunch for driver from musha | D74: 1 | E74: 3000 | F74: 3000
C75: Lunch for the guest in camp | D75: 1 | E75: 3000 | F75: 3000
C76: Dinner for the guest in camp(Fish burger) | D76: 1 | E76: 8000 | F76: 8000
C77: Dinner for COO( Beef brochette & chips) | D77: 1 | E77: 9500 | F77: 9500
C78: Soft drink for the guest in camp | D78: 1 | E78: 800 | F78: 800
B79: 13/2/2025 | C79: Lunch for the guest in camp | D79: 1 | E79: 3000 | F79: 3000
C80: Drinks for GM | D80: 1 | E80: 7000 | F80: 7000
C81: Dinner for COO( Chicken & chips) | D81: 1 | E81: 8000 | F81: 8000
C82: Dinner for the guest in camp(Fish & chips) | D82: 1 | E82: 8000 | F82: 8000
C83: Soft drink for the guest in camp | D83: 4 | E83: 1200 | F83: 4800
B84: 14/2/2025 | C84: Lunch for GM visitor | D84: 5 | E84: 5000 | F84: 25000
C85: Drinks for GM visitors | D85: 1 | E85: 41000 | F85: 41000
C86: Lunch for the guest in camp | D86: 2 | E86: 3000 | F86: 6000
C87: Lunch for driver from musha | D87: 1 | E87: 3000 | F87: 3000
C88: Dinner for the guest in camp(Chiken burger) | D88: 1 | E88: 8000 | F88: 8000
C89: Dinner for the guest in camp(Spagetti bolognesse) | D89: 1 | E89: 8000 | F89: 8000
C90: Soft drink for the guest in camp | D90: 5 | E90: 1200 | F90: 6000
B91: 16/2/2025 | C91: Dinner for the guest in camp(Half chiken &chips) | D91: 1 | E91: 13500 | F91: 13500
C92: Soft drink for the guest in camp | D92: 3 | E92: 1200 | F92: 3600
B93: 17/2/2025 | C93: PPE & Hand tools training(14 peoples for 2 days) | D93: 28 | E93: 4000 | F93: 112000
C94: Lunch for the guest in camp | D94: 2 | E94: 3000 | F94: 6000
C95: Dinner for the guest in camp(Fish vegetables) | D95: 3 | E95: 8000 | F95: 24000
C96: Soft drink for the guest in camp | D96: 3 | E96: 1200 | F96: 3600
B97: 18/2/2025 | C97: Lunch for the guest in camp | D97: 2 | E97: 3000 | F97: 6000
C98: Dinner for the guest in camp(Fish & chips) | D98: 1 | E98: 8000 | F98: 8000
C99: Dinner for the guest in camp(Chicken & chips) | D99: 1 | E99: 8000 | F99: 8000
C100: Soft drink for the guest in camp | D100: 4 | E100: 1200 | F100: 4800
B101: 19/2/2025 | C101: Lunch for the guest in camp | D101: 2 | E101: 3000 | F101: 6000
C102: Lunch for driver from musha | D102: 1 | E102: 3000 | F102: 3000
C103: Drinks for GM visitors | D103: 1 | E103: 18300 | F103: 18300
C104: Dinner for the guest in camp(Chiken burger) | D104: 1 | E104: 8000 | F104: =D104*E104 -> 8000
C105: Dinner for the guest in camp(Fish vegetables) | D105: 1 | E105: 8000 | F105: 8000
C106: Soft drink for the guest in camp | D106: 3 | E106: 1200 | F106: 3600
B107: 20/2/2025 | C107: Lunch for GM visitor | D107: 3 | E107: 3000 | F107: 9000
C108: Soft drinks for GM visitor | D108: 2 | E108: 1200 | F108: 2400
C109: Lunch for HIRA training | D109: 9 | E109: 4000 | F109: 36000
C110: Lunch for End review meeting | D110: 12 | E110: 4000 | F110: 48000
C111: Lunch for the guest in camp | D111: 2 | E111: 3000 | F111: 6000
C112: Dinner for the guest in camp(Fish vegetables) | D112: 1 | E112: 8000 | F112: 8000
C113: Dinner for the guest in camp(Chicken & chips) | D113: 1 | E113: 8000 | F113: 8000
C114: Dinner for the guest in camp(Half chiken &chips) | D114: 1 | E114: 13500 | F114: 13500
C115: Soft drink for the guest in camp | D115: 7 | E115: 1200 | F115: 8400
B116: 21/2/2025 | C116: Dinner for the guest in camp(Fish vegetables) | D116: 2 | E116: 8000 | F116: 16000
C117: Soft drink for the guest in camp | D117: 1 | E117: 1200 | F117: 1200
C118: Consumption for SHEC Summit(breakfast,lunch&beer) | D118: 1 | E118: 2914800 | F118: 2914800
B119: 22/2/2025 | C119: Lunch for the guest in camp | D119: 1 | E119: 3000 | F119: 3000
C120: Dinner for COO( Chicken burger) | D120: 1 | E120: 8000 | F120: 8000
C121: Dinner for the guest in camp(Brochette& chips) | D121: 1 | E121: 11000 | F121: 11000
C122: Soft drink for the guest in camp | D122: 4 | E122: 1200 | F122: 4800
B123: 24/2/2025 | C123: Lunch for accident/incident training(21 people in 2 days) | D123: 42 | E123: 4000 | F123: 168000
C124: Lunch for HR visitors | D124: 5 | E124: 3000 | F124: 15000
C125: Lunch fo musha driver | D125: 1 | E125: 3000 | F125: 3000
C126: Lunch for RM visitors | D126: 2 | E126: 3000 | F126: 6000
C127: Soft drink for the guest in camp | D127: 3 | E127: 1200 | F127: 3600
C128: Dinner for the guest in camp(Fish vegetables) | D128: 1 | E128: 8000 | F128: 8000
C129: Dinner for COO( Spaghetti bolognesse) | D129: 1 | E129: 8000 | F129: 8000
C130: Drinks for GM | D130: 1 | E130: 8000 | F130: 8000
E132: Total | F132: =SUM(F38:F130) -> 5078000

Sheet Guest February 2025 (hidden)
B2: NAMES | C2: DEPARTMENT | D2: TIME IN - TIME OUT
B3: William nyanungu | C3: Engeneering | D3: 2/1/2025 - up to now
B4: Pieter Albert | C4: H.R | D4: 26/1/2025 - 6/2/2025
B5: Frans | C5: H.R | D5: 26/1/2025 - 8/2/2025
B6: Christopher | C6: Mining | D6: 16/1/2025 - 15/2/2025
B7: Fanie ferreira | C7: H.R | D7: 2/2/2025 - 15/2/2025
B8: Shane Ryan | C8: COO | D8: 2/2/2025 - up to now
B9: Chandella abdallah | C9: H.R | D9: 16/2/2025 - 24/2/2025
B10: Pieter Albert | C10: H.R | D10: 16/2/2025 - 3/3/2025
B11: Tymothy makubo | C11: Supply chain | D11: 18/1/2025 - 22/2/2025

Sheet Meeting March 2025 (hidden)
B2: MEETING AND TRAINING IN MARCH 2025
B3: DATE | C3: AGENDA | D3: NUMBER OF PEOPLE | E3: CONSUMPTION
B4: 2025-04-03 | C4: Rewu Meeting | D4: 12 | E4: Breakfast, Lunch
B5: 10/3/2025-11/3/2025 | C5: HOD'S POLC training | D5: 6 | E5: Breakfast, Lunch
B6: 13/3/2025 | C6: POLC Leadership training | D6: 5 | E6: Breakfast, Lunch
B7: 14/3/2025 | C7: LOTO training | D7: 17 | E7: Breakfast, Lunch
B8: 20/3/2025 | C8: Monthly Review Meeting | D8: 15 | E8: Breakfast
C11: CONSUMPTION SUMMARY IN MARCH
C13: CONSUMPTION | D13: NUMBER OF PEOPLE | E13: UNITY PRICE | F13: TOTAL AMOUNT
C14: Softdrinks for visitors(camp & visitor) | D14: 10 | E14: 1200 | F14: =E14*D14 -> 12000
C15: Softdrinks for visitors(camp & visitor) | D15: 5 | E15: 1300 | F15: =E15*D15 -> 6500
C16: Lunch for RM visitors | D16: 47 | E16: 3000 | F16: 141000
C17: Dinner for COO (chips) | D17: 2 | E17: 3500 | F17: 7000
C18: Lunch for trainings | D18: 118 | E18: 4000 | F18: 472000
C19: Drinks for GM visitor | D19: 1 | E19: 135900 | F19: 135900
C20: Lunch for Minister visit delegation | D20: 8 | E20: 5000 | F20: 40000
C21: Dinner for Camp Guest(Beef burger) | D21: 10 | E21: 8000 | F21: 80000
C22: Dinner for Camp Guest(2 beef brochet& chips) | D22: 1 | E22: 9500 | F22: 9500
C23: Dinner for Camp guest(2 beef, joroforice +chips) | D23: 2 | E23: 10000 | F23: 20000
C24: Inyange Water | D24: 3 | E24: 12000 | F24: 36000
C25: Decoration for SHEC Summit | D25: 1 | E25: 26000 | F25: 26000
C26: Softdrink for Minister visit delegation | D26: 1 | E26: 28700 | F26: 28700
C27: Lunch for Rescue Team refreshment | D27: 1 | E27: 50200 | F27: 50200
C28: Drinks for Rescue Team refreshment | D28: 1 | E28: 21600 | F28: 21600
C29: Umuganda | D29: 1 | E29: 158700 | F29: 158700
E32: Total | F32: =SUM(F14:F31) -> 1245100
B36: DATE | C36: CONSUMPTION | D36: NUMBER OF PEOPLE | E36: UNITY PRICE | F36: TOTAL AMOUNT
B37: 25/2/2025 | C37: Meeting of GM with Site cordinator | D37: 1 | E37: 53700 | F37: =D37*E37 -> 53700
C38: Lunch for COO | D38: 1 | E38: 4000 | F38: =D38*E38 -> 4000
C39: Decoration for SHEC Summit | D39: 1 | E39: 26000 | F39: 26000
C40: Dinner for Albert(spagetti bolongese) | D40: 1 | E40: 8000 | F40: 8000
B41: 26/2/2025 | C41: Lunch for Gamiko visitor | D41: 18 | E41: 4000 | F41: 72000
C42: Lunch for Look out /Tag out training | D42: 15 | E42: 4000 | F42: 60000
C43: Dinner for COO(2 beef brochet& chips) | D43: 1 | E43: 9500 | F43: 9500
B44: 27/2/2025 | C44: Lunch for Albert | D44: 1 | E44: 3000 | F44: 3000
C45: Dinner pieter(fish vegeta) | D45: 1 | E45: 8000 | F45: 8000
C46: Drinks for Albert | D46: 1 | E46: 1200 | F46: 1200
C47: Drinks for Albert | D47: 1 | E47: 1300 | F47: 1300
B48: 28/2/2025 | C48: Dinner for Albert (chicken) | D48: 1 | E48: 8000 | F48: 8000
C49: Drinks for COO | D49: 1 | E49: 1300 | F49: 1300
C50: Dinner for COO(2 beef, joroforice +chips) | D50: 1 | E50: 10000 | F50: 10000
C51: Lunch for 5 X S training(2 days) | D51: 16 | E51: 4000 | F51: 64000
B52: 2025-01-03 | C52: Dinner Albert(fish burger) | D52: 1 | E52: 8000 | F52: 8000
C53: Drinks for Albert | D53: 2 | E53: 1200 | F53: 2400
B54: 2025-04-03 | C54: Lunch for Rewu Meeting | D54: 12 | E54: 3000 | F54: 36000
C55: Lunch for COO | D55: 1 | E55: 3000 | F55: 3000
B56: 2025-05-03 | C56: Dinner for COO(Rice&chips)+2Beef brochette | D56: 1 | E56: 10000 | F56: 10000
C57: Lunch for Musha Driver | D57: 1 | E57: 3000 | F57: 3000
C58: Drink for Musha Driver | D58: 1 | E58: 1200 | F58: 1200
B59: 2025-06-03 | C59: Inyange Water | D59: 3 | E59: 12000 | F59: 36000
C60: Lunch for Panel of training &development | D60: 10 | E60: 3000 | F60: 30000
C61: Lunch for Musha Driver | D61: 1 | E61: 3000 | F61: 3000
B62: 2025-07-03 | C62: Lunch for CFO | D62: 1 | E62: 3000 | F62: 3000
C63: Drinks for CFO | D63: 1 | E63: 1200 | F63: 1200
C64: Lunch for Musha Driver | D64: 1 | E64: 3000 | F64: 3000
C65: Drinks for musha driver | D65: 1 | E65: 1200 | F65: 1200
B66: 2025-10-03 | C66: Lunch for panel of driver exam | D66: 8 | E66: 3000 | F66: 24000
C67: Lunch for COO | D67: 1 | E67: 4000 | F67: 4000
C68: Lunch for Rina | D68: 1 | E68: 3000 | F68: 3000
C69: GM visitor(start of IPRS training) | D69: 1 | E69: 56300 | F69: 56300
C70: Dinner for Rina (Fish & salade) | D70: 1 | E70: 8000 | F70: 8000
C71: Drinks for Rina | D71: 1 | E71: 1200 | F71: 1200
B72: 2025-11-03 | C72: Lunch for HOD POLC training | D72: 6 | E72: 4000 | F72: 24000
C73: Dinner for Rina (Beef burger) | D73: 1 | E73: 8000 | F73: 8000
C74: Dinner for Jo Daneel's (Beef burger) | D74: 1 | E74: 8000 | F74: 8000
B75: 2025-12-03 | C75: Lunch for Minister visit delegation | D75: 8 | E75: 5000 | F75: 40000
C76: Softdrink for Minister visit delegation | D76: 1 | E76: 28700 | F76: 28700
B77: 13/3/2025 | C77: Lunch for COO | D77: 1 | E77: 4000 | F77: 4000
C78: Lunch for Jo Daneel's | D78: 1 | E78: 4000 | F78: 4000
C79: Lunch for Rina | D79: 1 | E79: 4000 | F79: 4000
C80: Lunch for CFO | D80: 1 | E80: 4000 | F80: 4000
C81: Drinks for GM visitor | D81: 1 | E81: 6000 | F81: 6000
B82: 14/3/2025 | C82: Lunch for LOTO training | D82: 17 | E82: 4000 | F82: 68000
C83: Lunch for Musha Driver | D83: 1 | E83: 3000 | F83: 3000
C84: Drinks for musha driver | D84: 2 | E84: 1300 | F84: 2600
C85: Lunch for COO | D85: 1 | E85: 4000 | F85: 4000
C86: Drinks for COO | D86: 1 | E86: 1300 | F86: 1300
B87: 18/3/2025 | C87: Lunch for GM | D87: 1 | E87: 3000 | F87: 3000
C88: Lunch for COO | D88: 1 | E88: 3000 | F88: 3000
C89: Lunch for tristan | D89: 1 | E89: 3000 | F89: =D89*E89 -> 3000
C90: GM visitors | D90: 1 | E90: 15400 | F90: 15400
B91: 19/3/2025 | C91: Lunch for COO | D91: 1 | E91: 3000 | F91: 3000
C92: Lunch for GM | D92: 1 | E92: 3000 | F92: 3000
C93: Lunch for tristan | D93: 1 | E93: 3000 | F93: 3000
C94: Lunch for Gerrit | D94: 1 | E94: 3000 | F94: 3000
C95: Softdrink for them | D95: 3 | E95: 1200 | F95: 3600
C96: Dinner for COO (chips) | D96: 1 | E96: 3500 | F96: 3500
B97: 20/3/2025 | C97: Lunch for COO | D97: 1 | E97: 4000 | F97: 4000
C98: Lunch for Jo Daneel's | D98: 1 | E98: 4000 | F98: 4000
C99: Lunch for CFO | D99: 1 | E99: 4000 | F99: 4000
C100: Dinner for COO (chips) | D100: 1 | E100: 3500 | F100: 3500
B101: 21/3/2025 | C101: Dinner for COO ( joroffo rice & chips) | D101: 1 | E101: 8000 | F101: 8000
B102: 24/3/2025 | C102: Lunch for mixing team(Upgrading plant) | D102: 28 | E102: 4000 | F102: 112000
C103: Dinner for COO( spaghetti bolongese) | D103: 1 | E103: 8000 | F103: 8000
B104: 26/3/2025 | C104: Dinner for COO ( joroffo rice & chips) | D104: 1 | E104: 8000 | F104: 8000
B105: 27/3/2025 | C105: Lunch for Rescue Team refreshment | D105: 1 | E105: 50200 | F105: 50200
C106: Drinks for GM visitor | D106: 1 | E106: 4500 | F106: 4500
B107: 28/3/2025 | C107: Lunch for Rescue Team refreshment | D107: 8 | E107: 4000 | F107: 32000
C108: Drinks for Rescue Team refreshment | D108: 1 | E108: 21600 | F108: 21600
C109: Lunch for CFO | D109: 1 | E109: 3000 | F109: 3000
C110: Lunch for COO | D110: 1 | E110: 3000 | F110: 3000
B111: 29/3/2025 | C111: Umuganda | D111: 1 | E111: 158700 | F111: 158700
E114: Total | F114: =SUM(F37:F111) -> 1245100

Sheet Guest March 2025 (hidden)
B2: NAMES | C2: DEPARTMENT | D2: TIME IN - TIME OUT
B3: Shane ryan | C3: COO | D3: 2/2/2025 - up to now
B4: Jo Daneel's | C4: Environment | D4: 10/3/2025 - 22/3/2025
B5: Rina muller | C5: HR | D5: 9/3/2025 - 21/3/2025
B6: William nyanungu | C6: Engeneering | D6: 2/1/2025 - 14/3/2025

Sheet Meeting April 2025 (hidden)
B2: MEETING AND TRAINING IN APRIL 2025
B3: DATE | C3: AGENDA | D3: NUMBER OF PEOPLE
B4: 2025-01-04 | C4: Task force meeting | D4: 20
B5: 2025-10-04 | C5: CEO Engagement with Supervisors and Group staff | D5: 96
B6: 16/4/2025 | C6: Rutongo Mines Meeting with Crops Africa | D6: 9
C9: CONSUMPTION SUMMARY IN APRIL
C11: CONSUMPTION | D11: NUMBER OF PEOPLE | E11: UNITY PRICE | F11: TOTAL AMOUNT
C12: Bananes for Rutongo mines football team | D12: 50 | E12: 200 | F12: =D12*E12 -> 10000
C13: Softdrinks for guest | D13: 1 | E13: 1200 | F13: =D13*E13 -> 1200
C14: African tea for Guest | D14: 1 | E14: 2500 | F14: 2500
C15: Lunch and breakfast(Team) for Rutongo Mines visitors | D15: 77 | E15: 3000 | F15: 231000
C16: GM visitor drinks | D16: 1 | E16: 163500 | F16: 163500
C17: Dinner for Martina(fish , banana & salade) | D17: 1 | E17: 9200 | F17: 9200
C18: Inyange Water box | D18: 6 | E18: 12000 | F18: 72000
C19: Toilet paper | D19: 3 | E19: 4500 | F19: 13500
C20: Juice box | D20: 3 | E20: 15600 | F20: 46800
C21: Task force meeting | D21: 1 | E21: 273300 | F21: 273300
E24: Total | F24: =SUM(F12:F23) -> 823000
B28: DATE | C28: CONSUMPTION | D28: NUMBER OF PEOPLE | E28: UNITY PRICE | F28: TOTAL AMOUNT
B29: 2025-01-04 | C29: Task force meeting | D29: 1 | E29: 273300 | F29: =D29*E29 -> 273300
B30: 2025-02-04 | C30: Lunch for Michael | D30: 1 | E30: 3000 | F30: =D30*E30 -> 3000
C31: Lunch for Rutongo mines visitor | D31: 1 | E31: 3000 | F31: 3000
B32: 2025-03-04 | C32: Lunch for michael | D32: 1 | E32: 3000 | F32: 3000
C33: Lunch fo Martina | D33: 1 | E33: 3000 | F33: 3000
C34: Softdrink for Martina | D34: 1 | E34: 1200 | F34: 1200
C35: Dinner for Martina(fish , banana & salade) | D35: 1 | E35: 9200 | F35: 9200
C36: African tea for Martina | D36: 1 | E36: 2500 | F36: 2500
B37: 2025-04-04 | C37: GM drinks | D37: 1 | E37: 3000 | F37: 3000
C38: Lunch for Michael | D38: 1 | E38: 3000 | F38: 3000
B39: 2025-05-04 | C39: GM visitors drinks | D39: 1 | E39: 6000 | F39: 6000
B40: 14/4/2025 | C40: Water | D40: 1 | E40: 12000 | F40: 12000
C41: Toilet paper | D41: 3 | E41: 4500 | F41: 13500
B42: 21/4/2025 | C42: Lunch for mixing team | D42: 11 | E42: 3000 | F42: 33000
B43: 24/4/2025 | C43: GM visitors drinks | D43: 1 | E43: 157500 | F43: 157500
C44: Breakfast for Rutongo football team(2 times) | D44: 60 | E44: 3000 | F44: 180000
C45: Water box | D45: 5 | E45: 12000 | F45: 60000
C46: Juice box | D46: 3 | E46: 15600 | F46: 46800
C47: Bananes | D47: 50 | E47: 200 | F47: 10000
E50: Total | F50: =SUM(F29:F47) -> 823000

Sheet Guest April 2025 (hidden)
B2: NAMES | C2: DEPARTMENT | D2: TIME IN - TIME OUT
B3: Shane ryan | C3: COO | D3: 2/2/2025 - 2/4/2025
B4: Martina | C4: Environment | D4: 3/4/2025 - 4/4/2025
B5: William nyanungu | C5: Engeneering | D5: 6/4/2025 - up to now
B6: Sidney | C6: Community | D6: 22/4/2025 - 23/4/2025
B7: Shane ryan | C7: COO | D7: 29/4/2025 - up to now
B8: Jo Daneel's | C8: Environment | D8: 28/4/2025 - 4/5/2025

Sheet Meeting May 2025 (hidden)
B3: MEETING AND TRAINING IN MAY 2025
B4: DATE | C4: AGENDA | D4: NUMBER OF PEOPLE
B5: 5/5/2025 to 6/5/2025 | C5: Tech met visit | D5: 15
B6: 2025-09-05 | C6: SHEC Committe | D6: 10
B7: 14/5/2025 | C7: Camborne school of mine visit | D7: 24
B8: 20/5/2025 to 22/5/2025 | C8: Trinity | 4 sight - site visit(3 days) | D8: 16
B9: 28/5/2025 to 29/5/2025 | C9: Physical inspection | D9: 20
B10: 30/5/2025 | C10: CFO Townhall Meeting | D10: 60
C13: CONSUMPTION SUMMARY IN MAY
C15: CONSUMPTION | D15: NUMBER OF PEOPLE | E15: UNITY PRICE | F15: TOTAL AMOUNT
C16: Soft drinks for techmet visit | D16: 19 | E16: 1000 | F16: =D16*E16 -> 19000
C17: Soft drinks for Rutongo mines visitors | D17: 18 | E17: 1200 | F17: =D17*E17 -> 21600
C18: Lunch for Rutongo mines visitor | D18: 29 | E18: 3000 | F18: 87000
C19: Dinner fo COO( chips) | D19: 1 | E19: 3500 | F19: 3500
C20: Lunch for Rutongo mines visitors and trainings | D20: 79 | E20: 4000 | F20: 316000
C21: Dinner for camp guest(Chicken wraps) | D21: 5 | E21: 10000 | F21: 50000
C22: Dinner for Camp guest (2brochet &chips) | D22: 1 | E22: 11500 | F22: 11500
C23: Dinner for Camp guest (Half chiken&chips) | D23: 2 | E23: 12000 | F23: 24000
C24: Dinner for Camp guest (Fish&chips) | D24: 1 | E24: 12500 | F24: 12500
C25: GM visitors | D25: 1 | E25: 62600 | F25: 62600
C26: Snacks for techmet visit(2 days) | D26: 1 | E26: 63000 | F26: 63000
C27: Cow donation celemony | D27: 1 | E27: 106200 | F27: 106200
E30: Total | F30: =SUM(F16:F29) -> 776900
B32: DATE | C32: CONSUMPTION | D32: NUMBER OF PEOPLE | E32: UNITY PRICE | F32: TOTAL AMOUNT
B33: 31/4/2025 | C33: Lunch for COO | D33: 1 | E33: 3000 | F33: =D33*E33 -> 3000
C34: Dinner fo COO(fish salade with chips) | D34: 1 | E34: 10000 | F34: =D34*E34 -> 10000
B35: 2025-01-05 | C35: Lunch for COO | D35: 1 | E35: 3000 | F35: 3000
B36: 2025-05-05 | C36: Lunch for techmet visit | D36: 15 | E36: 4000 | F36: 60000
C37: Soft drinks for techmet visit | D37: 15 | E37: 1000 | F37: 15000
C38: Snacks for techmet visit(2 days) | D38: 1 | E38: 63000 | F38: 63000
C39: Dinner fo COO( chips) | D39: 1 | E39: 3500 | F39: 3500
B40: 2025-06-05 | C40: Lunch for techmet visit | D40: 15 | E40: 4000 | F40: 60000
C41: Soft drinks for techmet visit | D41: 4 | E41: 1000 | F41: 4000
C42: Dinner for Jo danniel(2brochet &chips) | D42: 1 | E42: 11500 | F42: 11500
B43: 2025-08-05 | C43: Dinner fo COO(Chicken wraps) | D43: 1 | E43: 10000 | F43: 10000
B44: 2025-09-05 | C44: GM visitors | D44: 1 | E44: 62600 | F44: 62600
C45: Dinner fo COO(Chicken wraps) | D45: 1 | E45: 10000 | F45: 10000
B46: 2025-12-05 | C46: Lunch for COO | D46: 1 | E46: 3000 | F46: 3000
C47: Lunch for CFO | D47: 1 | E47: 3000 | F47: 3000
C48: Soft drinks for CFO | D48: 1 | E48: 1200 | F48: 1200
B49: 13/5/2025 | C49: Finance meeting | D49: 5 | E49: 3000 | F49: 15000
C50: District visitor | D50: 1 | E50: 3000 | F50: 3000
C51: Cow donation celemony | D51: 1 | E51: 106200 | F51: 106200
B52: 19/5/2025 | C52: Dinner for Jan Jansen (Half chiken&chips) | D52: 1 | E52: 12000 | F52: 12000
B53: 20/52025 | C53: Lunch for Trinity | 4 sight - site visit | D53: 3 | E53: 3000 | F53: 9000
C54: Soft drinks for Trinity | 4 sight - site visit | D54: 3 | E54: 1200 | F54: 3600
C55: Dinner for Jan Jansen (Fish&chips) | D55: 1 | E55: 12500 | F55: 12500
B56: 21/5/2025 | C56: Lunch for Trinity | 4 sight - site visit | D56: 3 | E56: 3000 | F56: 9000
C57: Soft drinks for Trinity | 4 sight - site visit | D57: 4 | E57: 3000 | F57: 12000
C58: finance Training | D58: 6 | E58: 3000 | F58: 18000
C59: Soft drinks for finance Training | D59: 6 | E59: 1200 | F59: 7200
C60: Lunch for musha driver | D60: 1 | E60: 3000 | F60: 3000
B61: 22/5/2025 | C61: Lunch for Trinity | 4 sight - site visit | D61: 3 | E61: 4000 | F61: 12000
C62: Soft drinks for Trinity | 4 sight - site visit | D62: 3 | E62: 1200 | F62: 3600
C63: Dinner fo COO(Chicken wraps) | D63: 1 | E63: 10000 | F63: 10000
B64: 23/5/2025 | C64: Dinner fo COO(Chicken wraps) | D64: 1 | E64: 10000 | F64: 10000
C65: Lunch Musha Driver | D65: 1 | E65: 3000 | F65: 3000
C66: Soft drinks for musha driver | D66: 1 | E66: 1200 | F66: 1200
B67: 28/5/2025 | C67: Lunch for CFO and COO | D67: 2 | E67: 4000 | F67: 8000
C68: Water box | D68: 1 | E68: 12000 | F68: 12000
C69: Soft drinks for CFO and COO | D69: 2 | E69: 1200 | F69: 2400
B70: 29/5/2025 | C70: Lunch for COO | D70: 1 | E70: 3000 | F70: 3000
B71: 30/5/2025 | C71: Lunch for Mixing team in upgrading plant | D71: 31 | E71: 4000 | F71: 124000
C72: Lunch for CFO town hall | D72: 12 | E72: 4000 | F72: 48000
C73: Soft drinks for Gracien | D73: 1 | E73: 1200 | F73: 1200
C74: Lunch for CFO | D74: 1 | E74: 4000 | F74: 4000
C75: Soft drinks for CFO | D75: 1 | E75: 1200 | F75: 1200
E78: Total | F78: =SUM(F33:F75) -> 776900

Sheet Guest May 2025 (hidden)
B2: NAMES | C2: DEPARTMENT | D2: TIME IN - TIME OUT
B3: Sidney | C3: Community | D3: 22/4/2025 - up to now
B4: Shane ryan | C4: COO | D4: 29/4/2025 - up to now
B5: Jo Daneel's | C5: Environment | D5: 28/4/2025 - 4/5/2025
B6: Jan Jansen Van Vuurem | C6: IT | D6: 19/5/2025 - 23/5/2025

Sheet Consumption may 2025 (hidden)
B3: DATE | C3: CONSUMPTION | D3: NUMBER OF PEOPLE | E3: UNITY PRICE | F3: TOTAL AMOUNT
B4: 31/4/2025 | C4: Lunch for COO | D4: 1 | E4: 3000 | F4: =D4*E4 -> 3000
C5: Dinner fo COO(fish salade with chips) | D5: 1 | E5: 10000 | F5: =D5*E5 -> 10000
B6: 2025-01-05 | C6: Lunch for COO | D6: 1 | E6: 3000 | F6: 3000
B7: 2025-05-05 | C7: Lunch for techmet visit | D7: 15 | E7: 4000 | F7: 60000
C8: Soft drinks for techmet visit | D8: 15 | E8: 1000 | F8: 15000
C9: Snacks for techmet visit(2 days) | D9: 1 | E9: 63000 | F9: 63000
C10: Dinner fo COO( chips) | D10: 1 | E10: 3500 | F10: 3500
B11: 2025-06-05 | C11: Lunch for techmet visit | D11: 15 | E11: 4000 | F11: 60000
C12: Soft drinks for techmet visit | D12: 4 | E12: 1000 | F12: 4000
C13: Dinner for Jo danniel(2brochet &chips) | D13: 1 | E13: 11500 | F13: 11500
B14: 2025-08-05 | C14: Dinner fo COO(Chicken wraps) | D14: 1 | E14: 10000 | F14: 10000
B15: 2025-09-05 | C15: GM visitors | D15: 1 | E15: 62600 | F15: 62600
C16: Dinner fo COO(Chicken wraps) | D16: 1 | E16: 10000 | F16: 10000
B17: 2025-12-05 | C17: Lunch for COO | D17: 1 | E17: 3000 | F17: 3000
C18: Lunch for CFO | D18: 1 | E18: 3000 | F18: 3000
C19: Soft drinks for CFO | D19: 1 | E19: 1200 | F19: 1200
B20: 13/5/2025 | C20: Finance meeting | D20: 5 | E20: 3000 | F20: 15000
C21: District visitor | D21: 1 | E21: 3000 | F21: 3000
C22: Cow donation celemony | D22: 1 | E22: 106200 | F22: 106200
B23: 19/5/2025 | C23: Dinner for Jan Jansen (Half chiken&chips) | D23: 1 | E23: 12000 | F23: 12000
B24: 20/52025 | C24: Lunch for Trinity | 4 sight - site visit | D24: 3 | E24: 3000 | F24: 9000
C25: Soft drinks for Trinity | 4 sight - site visit | D25: 3 | E25: 1200 | F25: 3600
C26: Dinner for Jan Jansen (Fish&chips) | D26: 1 | E26: 12500 | F26: 12500
B27: 21/5/2025 | C27: Lunch for Trinity | 4 sight - site visit | D27: 3 | E27: 3000 | F27: 9000
C28: Soft drinks for Trinity | 4 sight - site visit | D28: 4 | E28: 3000 | F28: 12000
C29: finance Training | D29: 6 | E29: 3000 | F29: 18000
C30: Soft drinks for finance Training | D30: 6 | E30: 1200 | F30: 7200
C31: Lunch for musha driver | D31: 1 | E31: 3000 | F31: 3000
B32: 22/5/2025 | C32: Lunch for Trinity | 4 sight - site visit | D32: 3 | E32: 4000 | F32: 12000
C33: Soft drinks for Trinity | 4 sight - site visit | D33: 3 | E33: 1200 | F33: 3600
C34: Dinner fo COO(Chicken wraps) | D34: 1 | E34: 10000 | F34: 10000
B35: 23/5/2025 | C35: Dinner fo COO(Chicken wraps) | D35: 1 | E35: 10000 | F35: 10000
C36: Lunch Musha Driver | D36: 1 | E36: 3000 | F36: 3000
C37: Soft drinks for musha driver | D37: 1 | E37: 1200 | F37: 1200
B38: 28/5/2025 | C38: Lunch for CFO and COO | D38: 2 | E38: 4000 | F38: 8000
C39: Water box | D39: 1 | E39: 12000 | F39: 12000
C40: Soft drinks for CFO and COO | D40: 2 | E40: 1200 | F40: 2400
B41: 29/5/2025 | C41: Lunch for COO | D41: 1 | E41: 3000 | F41: 3000
B42: 30/5/2025 | C42: Lunch for Mixing team in upgrading plant | D42: 31 | E42: 4000 | F42: 124000
C43: Lunch for CFO town hall | D43: 12 | E43: 4000 | F43: 48000
C44: Soft drinks for Gracien | D44: 1 | E44: 1200 | F44: 1200
C45: Lunch for CFO | D45: 1 | E45: 4000 | F45: 4000
C46: Soft drinks for CFO | D46: 1 | E46: 1200 | F46: 1200
E49: Total | F49: =SUM(F4:F46) -> 776900

Sheet Guest June 2025 (hidden)
B2: NAMES | C2: DEPARTMENT | D2: TIME IN - TIME OUT
B3: Shane Ryan | C3: COO | D3: 29/4/2025 - up to now
B4: Sidney | C4: Community | D4: 22/4/2025 - up to now
B5: Brink Visagie | C5: MRM | D5: 2/6/2025 to 7/6/2025
B6: Christopher | C6: Mining | D6: 7/6/2025 to 16/6/2025
B7: Pieter Albert | C7: HR | D7: 22/6/2025 up to now
B8: Frans | C8: HR | D8: 22/6/2025 up to now
B9: Jo Daneel | C9: Environment | D9: 29/6/2025 up to now

Sheet Consumption June 2025 (hidden)
B2: DATE | C2: CONSUMPTION | D2: NUMBER OF PEOPLE | E2: UNITY PRICE | F2: TOTAL AMOUNT
B3: 2025-02-06 | C3: Lunch for macro-mine training(5 times) | D3: 100 | E3: 4000 | F3: =D3*E3 -> 400000
C4: Dinner for macro-mine training(5 times) | D4: 25 | E4: 4000 | F4: =D4*E4 -> 100000
C5: Accomodation for macro-mine training(5 times) | D5: 20 | E5: 15000 | F5: 300000
C6: Lunch for CFO | D6: 1 | E6: 4000 | F6: 4000
C7: Drinks for CFO | D7: 1 | E7: 1200 | F7: 1200
B8: 2025-05-06 | C8: Local administrative entities visity | D8: 1 | E8: 301500 | F8: 301500
C9: Transport for local administrative entities | D9: 1 | E9: 97000 | F9: 97000
C10: Lunch Min-inter/joint | D10: 15 | E10: 4000 | F10: 60000
B11: 2025-07-06 | C11: Recognition of T32 tunnel no LTI for year | D11: 1 | E11: 1629100 | F11: 1629100
B12: 2025-09-06 | C12: Lunch GM visitors | D12: 4 | E12: 3000 | F12: 12000
C13: Drinks for GM visitors | D13: 7 | E13: 1000 | F13: 7000
C14: Lunch for COO | D14: 1 | E14: 4000 | F14: 4000
C15: Lunch Rescue training(4 times) | D15: 56 | E15: 4000 | F15: 224000
C16: Banana for Rescue training(4 times) | D16: 104 | E16: 200 | F16: 20800
C17: Dinner for Christopher (Beef brochet &chips) | D17: 1 | E17: 13900 | F17: 13900
C18: Drinks for Chris | D18: 2 | E18: 1300 | F18: 2600
B19: 2025-10-06 | C19: Lunch for COO | D19: 1 | E19: 4000 | F19: 4000
B20: 2025-11-06 | C20: Lunch for finance manager | D20: 3 | E20: 3000 | F20: 9000
C21: Lunch for COO | D21: 1 | E21: 4000 | F21: 4000
B22: 13/6/2025 | C22: Lunch for Bussines idea | D22: 20 | E22: 4000 | F22: 80000
C23: Drinks for Bussines idea | D23: 18 | E23: 1200 | F23: 21600
C24: Lunch for COO | D24: 1 | E24: 4000 | F24: 4000
C25: Drinks for GM visitors | D25: 1 | E25: 15600 | F25: 15600
B26: 17/6/2025 | C26: Lunch for Plant shutdawn coordination | D26: 36 | E26: 4000 | F26: 144000
C27: Dinner for Plant shutdawn coordination | D27: 6 | E27: 4000 | F27: 24000
C28: Drinks for Plant shutdawn coordination | D28: 42 | E28: 1300 | F28: 54600
B29: 18/6/2025 | C29: Lunch for Rutongo visitors(CFO) | D29: 2 | E29: 4000 | F29: 8000
C30: Drinks for Rutongo visitors(CFO) | D30: 3 | E30: 1200 | F30: 3600
B31: 19/6/2025 | C31: Blasting operation consumption | D31: 1 | E31: 402100 | F31: 402100
C32: Accomodation for Blasting operation | D32: 5 | E32: 15000 | F32: 75000
B33: 20/6/2025 | C33: Lunch for CFO | D33: 1 | E33: 4000 | F33: 4000
C34: Drinks for CFO | D34: 1 | E34: 2500 | F34: 2500
C35: Dinner for COO (Chips) | D35: 1 | E35: 3500 | F35: 3500
B36: 23/6/2025 | C36: Lunch for CFO | D36: 1 | E36: 4000 | F36: 4000
C37: Drinks for CFO | D37: 1 | E37: 2500 | F37: 2500
C38: Dinner for the Camp guest(fish vegetable) | D38: 2 | E38: 12000 | F38: 24000
C39: Drinks for the Camp guest | D39: 2 | E39: 1200 | F39: 2400
C40: Water for the Camp guest | D40: 2 | E40: 1300 | F40: 2600
B41: 24/6/2025 | C41: Lunch for safety representative(2 times) | D41: 34 | E41: 4000 | F41: 136000
C42: Drinks for Camp guest | D42: 1 | E42: 5500 | F42: 5500
C43: Dinner for the Camp guest(fish vegetable& Chips) | D43: 1 | E43: 12000 | F43: 12000
C44: Lunch for CFO & COO | D44: 2 | E44: 4000 | F44: 8000
C45: Drinks for CFO & COO | D45: 2 | E45: 1300 | F45: 2600
B46: 25/6/2025 | C46: Lunch for stock caunt team | D46: 30 | E46: 4000 | F46: 120000
C47: Drinks for stock caunt team | D47: 30 | E47: 1300 | F47: 39000
C48: Lunch for CFO & Mike | D48: 2 | E48: 4000 | F48: 8000
C49: Dinner for the Camp guest(Chicken wraps) | D49: 2 | E49: 10000 | F49: 20000
C50: Dinner for the Camp guest(Half chicken) | D50: 1 | E50: 16000 | F50: 16000
C51: Drinks for Camp guest | D51: 2 | E51: 1300 | F51: 2600
B52: 26/6/2025 | C52: Lunch for Accident and incident training(2 times) | D52: 26 | E52: 4000 | F52: 104000
C53: Lunch for Charis surveyor | D53: 3 | E53: 4000 | F53: 12000
C54: Drinks for Charis surveyor | D54: 3 | E54: 1500 | F54: 4500
C55: Dinner for the Camp guest(Chicken wraps) | D55: 2 | E55: 10000 | F55: 20000
C56: Dinner for the Camp guest(Hamburger chicken) | D56: 1 | E56: 8500 | F56: 8500
C57: Drinks for Camp guest | D57: 2 | E57: 1300 | F57: 2600
C58: Lunch for Mike | D58: 1 | E58: 4000 | F58: 4000
B59: 27/6/2025 | C59: Lunch for CFO & COO | D59: 2 | E59: 4000 | F59: 8000
C60: Dinner for the Camp guest(fish vegetable& Chips) | D60: 2 | E60: 10000 | F60: 20000
C61: Blasting operation consumption | D61: 1 | E61: 961000 | F61: 961000
C62: Accomodation for Blasting operation | D62: 5 | E62: 15000 | F62: 75000
B63: 28/6/2025 | C63: Dinner for COO (Chicken warps&spagetti bolongeuse) | D63: 2 | E63: 10000 | F63: 20000
C64: Dinner for the Camp guest(2 chicken rice) | D64: 2 | E64: 20000 | F64: 40000
C65: Drinks for Camp guest | D65: 2 | E65: 1300 | F65: 2600
B66: 30/6/2025 | C66: Lunch for CFO & COO | D66: 2 | E66: 4000 | F66: 8000
C67: Lunch for plant visitors | D67: 4 | E67: 3000 | F67: 12000
C68: Dinner for the Camp guest(2 fish vegetable& Chips) | D68: 2 | E68: 12000 | F68: 24000
C69: Drinks for Camp guest | D69: 2 | E69: 1300 | F69: 2600
B70: 30/5/2025 | C70: Snacks for CFO town hall(Last month) | D70: 1 | E70: 120000 | F70: 120000
E72: Total | F72: =SUM(F3:F70) -> 5890600

Sheet Camp June 2025 (hidden)
B3: CONSUMPTION SUMMARY IN JUNE
B5: CONSUMPTION | C5: NUMBER OF PEOPLE | D5: UNITY PRICE | E5: TOTAL AMOUNT
B6: Banana for Rescue training(4 times) | C6: 104 | D6: 200 | E6: =C6*D6 -> 20800
B7: Drinks for GM visitors | C7: 7 | D7: 1000 | E7: 7000
B8: Drinks for RM visitors & guest (1200 frw) | C8: 24 | D8: 1200 | E8: 28800
B9: Drinks for RM visitors & guest (1300 frw) | C9: 86 | D9: 1300 | E9: 111800
B10: Drinks for Charis surveyor(Panashi) | C10: 3 | D10: 1500 | E10: 4500
B11: Drinks for CFO | C11: 2 | D11: 2500 | E11: 5000
B12: Lunch for RM visitors | C12: 11 | D12: 3000 | E12: 33000
B13: Dinner for COO (Chips) | C13: 1 | D13: 3500 | E13: 3500
B14: Lunch for training & RM visitors | C14: 369 | D14: 4000 | E14: 1476000
B15: Drinks for Camp guest | C15: 1 | D15: 5500 | E15: 5500
B16: Dinner for the Camp guest(Hamburger chicken) | C16: 1 | D16: 8500 | E16: 8500
B17: Dinner for the Camp guest(Chicken wraps) | C17: 8 | D17: 10000 | E17: 80000
B18: Dinner for the Camp guest(2 fish vegetable& Chips) | C18: 5 | D18: 12000 | E18: 60000
B19: Dinner for Christopher (Beef brochet &chips) | C19: 1 | D19: 13900 | E19: 13900
B20: Accomodation for Blasting operation & trainings | C20: 30 | D20: 15000 | E20: 450000
B21: Drinks for GM visitors | C21: 1 | D21: 15600 | E21: 15600
B22: Dinner for the Camp guest(Half chicken) | C22: 1 | D22: 16000 | E22: 16000
B23: Dinner for the Camp guest(2 chicken rice) | C23: 2 | D23: 20000 | E23: 40000
B24: Transport for local administrative entities | C24: 1 | D24: 97000 | E24: 97000
B25: Snacks for CFO town hall(Last month) | C25: 1 | D25: 120000 | E25: 120000
B26: Local administrative entities visit consumption | C26: 1 | D26: 301500 | E26: 301500
B27: Blasting operation consumption (19/6/2025) | C27: 1 | D27: 402100 | E27: 402100
B28: Blasting operation consumption (27/6/2025) | C28: 1 | D28: 961000 | E28: 961000
B29: Recognition of T32 tunnel no LTI for year | C29: 1 | D29: 1629100 | E29: 1629100
D32: TOTAL | E32: =SUM(E6:E29) -> 5890600
A35: DATE | B35: CONSUMPTION | C35: NUMBER OF PEOPLE | D35: UNITY PRICE | E35: TOTAL AMOUNT
A36: 2025-02-06 | B36: Lunch for macro-mine training(5 times) | C36: 100 | D36: 4000 | E36: =C36*D36 -> 400000
B37: Dinner for macro-mine training(5 times) | C37: 25 | D37: 4000 | E37: =C37*D37 -> 100000
B38: Accomodation for macro-mine training(5 times) | C38: 20 | D38: 15000 | E38: 300000
B39: Lunch for CFO | C39: 1 | D39: 4000 | E39: 4000
B40: Drinks for CFO | C40: 1 | D40: 1200 | E40: 1200
A41: 2025-05-06 | B41: Local administrative entities visity | C41: 1 | D41: 301500 | E41: 301500
B42: Transport for local administrative entities | C42: 1 | D42: 97000 | E42: 97000
B43: Lunch Min-inter/joint | C43: 15 | D43: 4000 | E43: 60000
A44: 2025-07-06 | B44: Recognition of T32 tunnel no LTI for year | C44: 1 | D44: 1629100 | E44: 1629100
A45: 2025-09-06 | B45: Lunch GM visitors | C45: 4 | D45: 3000 | E45: 12000
B46: Drinks for GM visitors | C46: 7 | D46: 1000 | E46: 7000
B47: Lunch for COO | C47: 1 | D47: 4000 | E47: 4000
B48: Lunch Rescue training(4 times) | C48: 56 | D48: 4000 | E48: 224000
B49: Banana for Rescue training(4 times) | C49: 104 | D49: 200 | E49: 20800
B50: Dinner for Christopher (Beef brochet &chips) | C50: 1 | D50: 13900 | E50: 13900
B51: Drinks for Chris | C51: 2 | D51: 1300 | E51: 2600
A52: 2025-10-06 | B52: Lunch for COO | C52: 1 | D52: 4000 | E52: 4000
A53: 2025-11-06 | B53: Lunch for finance manager | C53: 3 | D53: 3000 | E53: 9000
B54: Lunch for COO | C54: 1 | D54: 4000 | E54: 4000
A55: 13/6/2025 | B55: Lunch for Bussines idea | C55: 20 | D55: 4000 | E55: 80000
B56: Drinks for Bussines idea | C56: 18 | D56: 1200 | E56: 21600
B57: Lunch for COO | C57: 1 | D57: 4000 | E57: 4000
B58: Drinks for GM visitors | C58: 1 | D58: 15600 | E58: 15600
A59: 17/6/2025 | B59: Lunch for Plant shutdawn coordination | C59: 36 | D59: 4000 | E59: 144000
B60: Dinner for Plant shutdawn coordination | C60: 6 | D60: 4000 | E60: 24000
B61: Drinks for Plant shutdawn coordination | C61: 42 | D61: 1300 | E61: 54600
A62: 18/6/2025 | B62: Lunch for Rutongo visitors(CFO) | C62: 2 | D62: 4000 | E62: 8000
B63: Drinks for Rutongo visitors(CFO) | C63: 3 | D63: 1200 | E63: 3600
A64: 19/6/2025 | B64: Blasting operation consumption | C64: 1 | D64: 402100 | E64: 402100
B65: Accomodation for Blasting operation | C65: 5 | D65: 15000 | E65: 75000
A66: 20/6/2025 | B66: Lunch for CFO | C66: 1 | D66: 4000 | E66: 4000
B67: Drinks for CFO | C67: 1 | D67: 2500 | E67: 2500
B68: Dinner for COO (Chips) | C68: 1 | D68: 3500 | E68: 3500
A69: 23/6/2025 | B69: Lunch for CFO | C69: 1 | D69: 4000 | E69: 4000
B70: Drinks for CFO | C70: 1 | D70: 2500 | E70: 2500
B71: Dinner for the Camp guest(fish vegetable) | C71: 2 | D71: 12000 | E71: 24000
B72: Drinks for the Camp guest | C72: 2 | D72: 1200 | E72: 2400
B73: Water for the Camp guest | C73: 2 | D73: 1300 | E73: 2600
A74: 24/6/2025 | B74: Lunch for safety representative(2 times) | C74: 34 | D74: 4000 | E74: 136000
B75: Drinks for Camp guest | C75: 1 | D75: 5500 | E75: 5500
B76: Dinner for the Camp guest(fish vegetable& Chips) | C76: 1 | D76: 12000 | E76: 12000
B77: Lunch for CFO & COO | C77: 2 | D77: 4000 | E77: 8000
B78: Drinks for CFO & COO | C78: 2 | D78: 1300 | E78: 2600
A79: 25/6/2025 | B79: Lunch for stock caunt team | C79: 30 | D79: 4000 | E79: 120000
B80: Drinks for stock caunt team | C80: 30 | D80: 1300 | E80: 39000
B81: Lunch for CFO & Mike | C81: 2 | D81: 4000 | E81: 8000
B82: Dinner for the Camp guest(Chicken wraps) | C82: 2 | D82: 10000 | E82: 20000
B83: Dinner for the Camp guest(Half chicken) | C83: 1 | D83: 16000 | E83: 16000
B84: Drinks for Camp guest | C84: 2 | D84: 1300 | E84: 2600
A85: 26/6/2025 | B85: Lunch for Accident and incident training(2 times) | C85: 26 | D85: 4000 | E85: 104000
B86: Lunch for Charis surveyor | C86: 3 | D86: 4000 | E86: 12000
B87: Drinks for Charis surveyor | C87: 3 | D87: 1500 | E87: 4500
B88: Dinner for the Camp guest(Chicken wraps) | C88: 2 | D88: 10000 | E88: 20000
B89: Dinner for the Camp guest(Hamburger chicken) | C89: 1 | D89: 8500 | E89: 8500
B90: Drinks for Camp guest | C90: 2 | D90: 1300 | E90: 2600
B91: Lunch for Mike | C91: 1 | D91: 4000 | E91: 4000
A92: 27/6/2025 | B92: Lunch for CFO & COO | C92: 2 | D92: 4000 | E92: 8000
B93: Dinner for the Camp guest(fish vegetable& Chips) | C93: 2 | D93: 10000 | E93: 20000
B94: Blasting operation consumption | C94: 1 | D94: 961000 | E94: 961000
B95: Accomodation for Blasting operation | C95: 5 | D95: 15000 | E95: 75000
A96: 28/6/2025 | B96: Dinner for COO (Chicken warps&spagetti bolongeuse) | C96: 2 | D96: 10000 | E96: 20000
B97: Dinner for the Camp guest(2 chicken rice) | C97: 2 | D97: 20000 | E97: 40000
B98: Drinks for Camp guest | C98: 2 | D98: 1300 | E98: 2600
A99: 30/6/2025 | B99: Lunch for CFO & COO | C99: 2 | D99: 4000 | E99: 8000
B100: Lunch for plant visitors | C100: 4 | D100: 3000 | E100: 12000
B101: Dinner for the Camp guest(2 fish vegetable& Chips) | C101: 2 | D101: 12000 | E101: 24000
B102: Drinks for Camp guest | C102: 2 | D102: 1300 | E102: 2600
A103: 30/5/2025 | B103: Snacks for CFO town hall(Last month) | C103: 1 | D103: 120000 | E103: 120000
D105: Total | E105: =SUM(E36:E103) -> 5890600

Sheet Camp jully 2025 (hidden)
A2: CONSUMPTION SUMMARY IN JULLY
A4: CONSUMPTION | B4: NUMBER OF PEOPLE | C4: UNITY PRICE | D4: TOTAL AMOUNT
A5: Drinks for the guest in the camp& visitors(1000 frw) | B5: 16 | C5: 1000 | D5: =B5*C5 -> 16000
A6: Drinks for the guest in the camp & visitors(1200 frw) | B6: 10 | C6: 1200 | D6: =B6*C6 -> 12000
A7: Drinks for the guest in the camp & visitors(1300 frw) | B7: 50 | C7: 1300 | D7: 65000
A8: Drinks for the guest in the camp & visitors(1500 frw) | B8: 2 | C8: 1500 | D8: 3000
A9: African tea for the guest | B9: 2 | C9: 2500 | D9: 5000
A10: Drinks for Christopher | B10: 1 | C10: 3500 | D10: 3500
A11: Lunch for Training and RM visitors | B11: 370 | C11: 4000 | D11: 1480000
A12: Drinks for Guest in camp | B12: 3 | C12: 5000 | D12: 15000
A13: Drinks for rescue team | B13: 1 | C13: 214800 | D13: 214800
A14: Lunch for Andre(Chicken brochet and chips) | B14: 1 | C14: 7500 | D14: 7500
A15: Breakfast for Investors visit | B15: 30 | C15: 8000 | D15: 240000
A16: Dinner for Guest in camp (spaghetti bolognesse) | B16: 5 | C16: 8500 | D16: 42500
A17: Dinner for Guest in camp (Chicken burger) | B17: 4 | C17: 10000 | D17: 40000
A18: Dinner for Guest in camp (5brochette and chips) | B18: 1 | C18: 11000 | D18: 11000
A19: Dinner for Guest in camp (2 chicken brochette and chips) | B19: 3 | C19: 11500 | D19: 34500
A20: Dinner for Guest in camp (fish vegetable and chips) | B20: 19 | C20: 12000 | D20: 228000
A21: Accomodation for Nyakabingo driver(5 times) | B21: 5 | C21: 15000 | D21: 75000
A22: Dinner for Guest in camp (Chicken wraps & chips) | B22: 2 | C22: 15500 | D22: 31000
A23: Drinks for Province visitors | B23: 1 | C23: 19500 | D23: 19500
A24: Drinks for RIB and Police (Rescue time) | B24: 1 | C24: 19600 | D24: 19600
A25: Lunch for Investors visit | B25: 30 | C25: 25000 | D25: 750000
A26: Lunch for Guest in camp (6beefbrochet& 2chips) | B26: 1 | C26: 31000 | D26: 31000
A27: Dinner for the guest(2chicken brochette,chips,2chicken wraps,chicken stew) | B27: 1 | C27: 45500 | D27: 45500
A28: Lunch for Mayor team in rescue time | B28: 1 | C28: 55700 | D28: 55700
A29: Football team consumption after match | B29: 1 | C29: 65000 | D29: 65000
A30: Softdrinks for Investors visit | B30: 1 | C30: 79500 | D30: 79500
C32: TOTAL | D32: =SUM(D5:D30) -> 3589600
A35: DATE | B35: CONSUMPTION | C35: NUMBER OF PEOPLE | D35: UNITY PRICE | E35: TOTAL AMOUNT
A36: 2025-01-07 | B36: Lunch for Jo Daniel | C36: 1 | D36: 4000 | E36: =C36*D36 -> 4000
B37: Drink for Jo Daniel | C37: 1 | D37: 1000 | E37: =C37*D37 -> 1000
B38: Lunch for CFO | C38: 1 | D38: 4000 | E38: 4000
B39: Drink for CFO | C39: 1 | D39: 1300 | E39: 1300
A40: 2/7/2025 to 3/7/2025 | B40: HIRA training (2times) | C40: 28 | D40: 4000 | E40: 112000
B41: Dinner for Albert(fish vegetable) | C41: 2 | D41: 12000 | E41: 24000
B42: Dinner for Frans (fish vegetable) | C42: 2 | D42: 12000 | E42: 24000
B43: Water for guest | C43: 1 | D43: 1200 | E43: 1200
B44: Drink for guest | C44: 1 | D44: 1300 | E44: 1300
A45: 2025-07-07 | B45: Drink for COO | C45: 1 | D45: 1000 | E45: 1000
B46: Lunch for COO | C46: 1 | D46: 4000 | E46: 4000
B47: Lunch for Jo Daniel | C47: 1 | D47: 4000 | E47: 4000
B48: Drink for Jo Daniel | C48: 1 | D48: 1300 | E48: 1300
B49: Dinner for Clive(2 chicken brochette and chips) | C49: 1 | D49: 11500 | E49: 11500
B50: Drink for Clive | C50: 1 | D50: 1300 | E50: 1300
A51: 2025-08-07 | B51: Dinner for Clive (chicken Wraps) | C51: 1 | D51: 12000 | E51: 12000
B52: Drink for Clive | C52: 2 | D52: 1300 | E52: 2600
A53: 2025-09-07 | B53: Dinner for Clive(2 chicken brochette and chips) | C53: 1 | D53: 11500 | E53: 11500
B54: Drink for Clive | C54: 2 | D54: 1300 | E54: 2600
B55: Dinner for Chandela(half chicken and chips) | C55: 1 | D55: 11500 | E55: 11500
B56: Drink for Chandela | C56: 1 | D56: 1300 | E56: 1300
A57: 2025-10-07 | B57: Bobcat Refresher training(3 times) | C57: 28 | D57: 4000 | E57: 112000
B58: Lunch for Rescue team | C58: 18 | D58: 4000 | E58: 72000
B59: Dinner for Rescue team | C59: 18 | D59: 4000 | E59: 72000
B60: Drinks for Rescue team | C60: 18 | D60: 1300 | E60: 23400
B61: Dinner for Chandela(5brochette and chips) | C61: 1 | D61: 11000 | E61: 11000
B62: African tea | C62: 1 | D62: 2500 | E62: 2500
B63: Drink for Chandela | C63: 1 | D63: 1300 | E63: 1300
B64: Breakfast for Investors visit | C64: 30 | D64: 8000 | E64: 240000
B65: Lunch for Investors visit | C65: 30 | D65: 25000 | E65: 750000
B66: Softdrinks for Investors visit | C66: 1 | D66: 79500 | E66: 79500
B67: Drinks for RIB and Police (Rescue time) | C67: 1 | D67: 19600 | E67: 19600
A68: 2025-11-07 | B68: Breakfast for Rescue team | C68: 30 | D68: 4000 | E68: 120000
B69: Lunch for Rescue team | C69: 20 | D69: 4000 | E69: 80000
B70: Lunch for Mayor team in rescue time | C70: 1 | D70: 55700 | E70: 55700
B71: Drinks for rescue team(3botles per person) | C71: 1 | D71: 214800 | E71: 214800
A72: 2025-12-07 | B72: Dinner for Chandela(fish vegetable and chips) | C72: 1 | D72: 12000 | E72: 12000
A73: 13/7/2025 | B73: Dinner for Chandela(fish vegetable and chips) | C73: 1 | D73: 12000 | E73: 12000
B74: Drink for Chandela | C74: 1 | D74: 1200 | E74: 1200
A75: 14/7/2025 | B75: Light vehicle training | C75: 5 | D75: 4000 | E75: 20000
B76: Dinner for Chandela(Rabbit) | C76: 1 | D76: 10000 | E76: 10000
B77: Drink for Chandela | C77: 2 | D77: 1000 | E77: 2000
B78: Lunch for the guest(Andrea and Moodley) | C78: 2 | D78: 4000 | E78: 8000
B79: Drinks for the guest(Andrea and Moodley) | C79: 3 | D79: 1000 | E79: 3000
B80: Lunch for CFO | C80: 1 | D80: 4000 | E80: 4000
B81: Drinks for CFO | C81: 2 | D81: 1300 | E81: 2600
B82: Dinner for the guest(Fish veg and chips )(Andrea and Moodley) | C82: 2 | D82: 12000 | E82: 24000
B83: Drinks for the guest(Andrea and Moodley) | C83: 2 | D83: 1200 | E83: 2400
B84: Dinner for Chandela(fish vegetable and chips) | C84: 1 | D84: 1200 | E84: 1200
B85: Water for Chandela | C85: 1 | D85: 1000 | E85: 1000
B86: African tea | C86: 1 | D86: 2500 | E86: 2500
A87: 15/7/2025 | B87: Lunch for chandela | C87: 1 | D87: 4000 | E87: 4000
B88: Lunch for the guest(Andrea and Moodley) | C88: 2 | D88: 4000 | E88: 8000
B89: Dinner for the guest(Chicken wraps )(Andrea and Moodley) | C89: 2 | D89: 12000 | E89: 24000
B90: Drinks for the guest(Andrea and Moodley) | C90: 2 | D90: 1200 | E90: 2400
A91: 16/7/2025 | B91: OHS meeting | C91: 5 | D91: 4000 | E91: 20000
B92: Lunch for the guest(Andrea and Moodley)(6beefbrochet&chips) | C92: 1 | D92: 31000 | E92: 31000
B93: Water for the guest | C93: 1 | D93: 1200 | E93: 1200
B94: Drinks for the guest(Andrea and Moodley) | C94: 2 | D94: 1300 | E94: 2600
B95: Dinner for the guest(Chicken wraps )(Andrea and Moodley) | C95: 2 | D95: 12000 | E95: 24000
B96: Drinks for the guest(Andrea and Moodley) | C96: 2 | D96: 1300 | E96: 2600
A97: 17/7/2025 | B97: Lunch for Andre | C97: 1 | D97: 4000 | E97: 4000
B98: Dinner for Andre(Chicken burger) | C98: 1 | D98: 10000 | E98: 10000
B99: Drinks For Andre | C99: 1 | D99: 1300 | E99: 1300
B100: Dinner for the guest(Beef burger&chips )(Andrea and Moodley) | C100: 2 | D100: 10000 | E100: 20000
B101: Drinks for the guest(Andrea and Moodley) | C101: 2 | D101: 1300 | E101: 2600
A102: 18/7/2025 | B102: Lunch for Andre | C102: 1 | D102: 4000 | E102: 4000
B103: Drinks For Andre | C103: 1 | D103: 1300 | E103: 1300
B104: Lunch for the guest(Andrea and Moodley) | C104: 2 | D104: 4000 | E104: 8000
B105: Drinks for the guest(Andrea and Moodley) | C105: 2 | D105: 1300 | E105: 2600
B106: Dinner for the guest(2chicken brochette,chips,2chicken wraps,chicken stew)(Andrea,Andre and Moodley) | C106: 1 | D106: 45500 | E106: 45500
B107: Drinks for the guest(Andrea and Moodley) | C107: 4 | D107: 1300 | E107: 5200
B108: Water for the guest | C108: 1 | D108: 1200 | E108: 1200
A109: 19/7/2025 | B109: Lunch for Andre(Chicken brochet and chips) | C109: 1 | D109: 7500 | E109: 7500
B110: Dinner for Andre(Spaghetti bolongeus) | C110: 1 | D110: 8500 | E110: 8500
B111: Drink For Andre | C111: 1 | D111: 1300 | E111: 1300
B112: water for Andre | C112: 1 | D112: 1000 | E112: 1000
B113: Dinner for the guest(Chicken wraps )(Andrea and Moodley) | C113: 2 | D113: 12000 | E113: 24000
A114: 20/7/2025 | B114: Dinner for Andre(beef brochette& chips salade) | C114: 1 | D114: 12000 | E114: 12000
B115: Drink For Andre | C115: 1 | D115: 1000 | E115: 1000
A116: 21/7/2025 | B116: Lunch for SDF trainings(Musha people ) 9 times | C116: 63 | D116: 4000 | E116: 252000
B117: Dinner for SDF trainings(Musha people ) 8 times | C117: 77 | D117: 4000 | E117: 308000
B118: Lunch for Andre | C118: 1 | D118: 4000 | E118: 4000
B119: Drink For Andre | C119: 1 | D119: 1000 | E119: 1000
B120: Dinner for Andre(Chicken wraps & chips) | C120: 1 | D120: 15500 | E120: 15500
B121: Drink For Andre | C121: 1 | D121: 1300 | E121: 1300
B122: Water for Andre | C122: 1 | D122: 1200 | E122: 1200
A123: 22/7/2025 | B123: Dinner for Andre(Fish vegetable & chips) | C123: 1 | D123: 15500 | E123: 15500
B124: Drink For Andre | C124: 1 | D124: 1000 | E124: 1000
A125: 23/7/2025 | B125: Dinner for Andre(Chicken wraps) | C125: 1 | D125: 12000 | E125: 12000
B126: Drink For Andre | C126: 1 | D126: 1300 | E126: 1300
A127: 24/7/2025 | B127: Lunch for Andre | C127: 1 | D127: 4000 | E127: 4000
B128: Avocat for Andre | C128: 1 | D128: 1000 | E128: 1000
B129: Water for Andre | C129: 1 | D129: 1000 | E129: 1000
B130: Lunch for Province visitors | C130: 15 | D130: 4000 | E130: =C130*D130 -> 60000
B131: Drinks for Province visitors | C131: 1 | D131: 19500 | E131: =C131*D131 -> 19500
B132: Dinner for Andre(Chicken wraps) | C132: 1 | D132: 12000 | E132: 12000
B133: Drink For Andre | C133: 1 | D133: 1300 | E133: 1300
B134: Water for Andre | C134: 1 | D134: 1000 | E134: 1000
A135: 25/7/2025 | B135: Lunch for Andre | C135: 1 | D135: 4000 | E135: 4000
B136: Drinks for Andre | C136: 1 | D136: 1300 | E136: 1300
B137: Water for Andre | C137: 1 | D137: 1000 | E137: 1000
B138: Lunch for Christopher | C138: 1 | D138: 4000 | E138: 4000
B139: Drinks for Christopher | C139: 1 | D139: 1300 | E139: 1300
B140: Football team consumption after match | C140: 1 | D140: 65000 | E140: 65000
A141: 26/7/2025 | B141: Dinner for Christopher(spaghetti bolognesse) | C141: 1 | D141: 8500 | E141: 8500
B142: Drinks for Christopher | C142: 1 | D142: 3500 | E142: 3500
A143: 28/7/2025 | B143: Dinner for Christopher(spaghetti bolognesse) | C143: 1 | D143: 8500 | E143: 8500
B144: Drinks for Christopher | C144: 1 | D144: 5000 | E144: 5000
A145: 29/7/2025 | B145: Dinner for Pieter albert(Fish vegetable) | C145: 1 | D145: 12000 | E145: 12000
B146: Drinks for Pieter albert | C146: 2 | D146: 1500 | E146: 3000
B147: Accomodation for Nyakabingo driver(5 times) | C147: 5 | D147: 15000 | E147: 75000
B148: Dinner for Nyakabingo driver | C148: 1 | D148: 4000 | E148: 4000
A149: 30/7/2025 | B149: Lunch for workplace training (2 times) | C149: 30 | D149: 4000 | E149: 120000
B150: Lunch for MININTER visit | C150: 10 | D150: 4000 | E150: =C150*D150 -> 40000
B151: Lunch for Nyakabingo driver | C151: 1 | D151: 4000 | E151: =C151*D151 -> 4000
B152: Dinner for Nyakabingo driver | C152: 1 | D152: 4000 | E152: 4000
B153: Dinner for Pieter albert(Fish vegetable) | C153: 1 | D153: 8500 | E153: 8500
B154: Dinner for Christopher(Fish vegetable) | C154: 1 | D154: 8500 | E154: 8500
B155: Drinks for Christopher | C155: 1 | D155: 5000 | E155: 5000
B156: Drinks for Pieter albert | C156: 1 | D156: 5000 | E156: 5000
A157: 31/7/2025 | B157: Lunch for Nyakabingo driver | C157: 1 | D157: 4000 | E157: 4000
B158: Dinner for Nyakabingo driver | C158: 1 | D158: 4000 | E158: 4000
D161: Total | E161: =SUM(E36:E158) -> 3589600

Sheet Camp August 2025 (hidden)
B2: NAMES | C2: DEPARTMENT | D2: TIME IN - TIME OUT
B3: Shane Ryan | C3: COO | D3: 3/8/2025 - 8/8/2025
B4: Sidney | C4: Community | D4: 22/4/2025 - 29/8/2025
B5: Pieter Albert | C5: HR | D5: 29/7/2025 - 2/8/2025
B6: Fanie Fereira | C6: HR | D6: 3/8/2025 - 15/8/2025
B7: Tony barbour | C7: Community | D7: 18/8/2025 - 21/8/2025
B8: Quintin Grix | C8: MRM | D8: 24/8/2025 - 30/8/2025
B9: Jan Andries | C9: MRM | D9: 24/8/2025 - 30/8/2025
B10: Andre nel | C10: Finance | D10: 27/8/2025 - up to now
B21: DATE | C21: CONSUMPTION | D21: NUMBER OF PEOPLE | E21: UNITY PRICE | F21: TOTAL AMOUNT
B22: 1/8/2025 to 29/8/2025 | C22: Dinner for SDF trainings(Musha people ) 19 times | D22: 182 | E22: 4000 | F22: =D22*E22 -> 728000
B23: 4/8/2025 to 13/8/2025 | C23: Lunch for blasting assistant (8 times) | D23: 146 | E23: 4000 | F23: =D23*E23 -> 584000
B24: 2025-05-08 | C24: Lunch for CFO | D24: 1 | E24: 4000 | F24: 4000
C25: Drinks for CFO | D25: 1 | E25: 1300 | F25: 1300
C26: Lunch for visitors(Sam Ryumugabe) | D26: 2 | E26: 4000 | F26: 8000
B27: 2025-06-08 | C27: Dinner for Fannie | D27: 1 | E27: 4000 | F27: 4000
C28: Drinks for Fannie | D28: 2 | E28: 1300 | F28: 2600
C29: Lunch for CFO | D29: 1 | E29: 4000 | F29: 4000
C30: Drinks for CFO | D30: 1 | E30: 1300 | F30: 1300
B31: 2025-07-08 | C31: Lunch for CFO | D31: 1 | E31: 4000 | F31: 4000
C32: Drinks for CFO | D32: 1 | E32: 1300 | F32: 1300
C33: Lunch for visitors (GIZ visit) | D33: 15 | E33: 4000 | F33: 60000
C34: Drinks for for visitors (GIZ visit) | D34: 1 | E34: 17400 | F34: 17400
B35: 2025-08-08 | C35: Lunch for driver/musha (peter simon ) | D35: 3 | E35: 4000 | F35: 12000
C36: Drinks for Fannie | D36: 2 | E36: 1300 | F36: 2600
C37: Water for Fannie | D37: 1 | E37: 1000 | F37: 1000
B38: 2025-11-08 | C38: Drinks for Fannie | D38: 1 | E38: 1300 | F38: 1300
C39: Lunch for COO | D39: 1 | E39: 4000 | F39: 4000
C40: Drinks for COO | D40: 1 | E40: 1300 | F40: 1300
C41: Lunch for RIB Person(2) | D41: 2 | E41: 4000 | F41: 8000
C42: Drinks RIB Parson (2) | D42: 2 | E42: 1300 | F42: 2600
C43: Drinks visitors (Karangwa Erneste ) | D43: 1 | E43: 20900 | F43: 20900
C44: Dinner G.M | D44: 1 | E44: 10400 | F44: 10400
C45: Drinks G.M | D45: 5 | E45: 2000 | F45: 10000
B46: 2025-12-08 | C46: Lunch Visitors (Karangwa Erneste ) | D46: 7 | E46: 4000 | F46: 28000
C47: Drinks Visitors (Karangwa Erneste ) | D47: 7 | E47: 1300 | F47: 9100
B48: 13/8/2025 | C48: Lunch training(Disciplinary and Anti-Harassment & Bullying Policies and Procedures) | D48: 29 | E48: 4000 | F48: 116000
C49: Lunch Mixing team (Upgrading plant) | D49: 32 | E49: 4000 | F49: 128000
B50: 14/8/2025 | C50: Lunch for Fannie | D50: 1 | E50: 4000 | F50: 4000
C51: Drinks for Fannie | D51: 2 | E51: 1300 | F51: 2600
C52: Lunch for CFO | D52: 1 | E52: 4000 | F52: 4000
C53: Drink for CFO | D53: 1 | E53: 1300 | F53: 1300
B54: 16/8/2025 | C54: Lunch for Football team | D54: 40 | E54: 4000 | F54: 160000
C55: Drinks for Football team | D55: 40 | E55: 1300 | F55: 52000
B56: 18/8/2025 | C56: Lunch for training(MRM collaboration ) | D56: 16 | E56: 4000 | F56: 64000
C57: Lunch for Visitors (sam ) | D57: 2 | E57: 4000 | F57: 8000
C58: Dinner for Visitors (sam ) | D58: 2 | E58: 1300 | F58: 2600
C59: Dinner for Tony (Chicken stew & chicken) | D59: 1 | E59: 8500 | F59: 8500
C60: Drink for G.M | D60: 3 | E60: 1700 | F60: 5100
C61: Dinner G.M (rabbit) | D61: 1 | E61: 10000 | F61: 10000
C62: Lunch for COO | D62: 1 | E62: 4000 | F62: 4000
B63: 19/8/2025 | C63: Lunch for Tony | D63: 1 | E63: 4000 | F63: 4000
C64: Drink for Tony | D64: 2 | E64: 1300 | F64: 2600
C65: Dinner for Tony | D65: 1 | E65: 8000 | F65: 8000
C66: Drink for Tony | D66: 1 | E66: 1300 | F66: 1300
B67: 20/8/2025 | C67: Lunch forVisitors (Sam) | D67: 2 | E67: 4000 | F67: 8000
C68: Drink for Visitors (Sam) | D68: 4 | E68: 1300 | F68: 5200
C69: Lunch for mixing team( upgrading plant) | D69: 15 | E69: 4000 | F69: 60000
C70: Dinner for Nyamyumba plant team | D70: 12 | E70: 4000 | F70: 48000
C71: Drinks for Nyamyumba plant team | D71: 12 | E71: 1500 | F71: 18000
B72: 21/8/2025 | C72: Lunch for Nyamyumba plant team | D72: 15 | E72: 4000 | F72: 60000
C73: Drinks for Nyamyumba plant team | D73: 15 | E73: 1300 | F73: 19500
C74: Lunch for Finance manager Nyakabingo | D74: 1 | E74: 3000 | F74: 3000
C75: Drinks for Finance manager Nyakabingo | D75: 1 | E75: 1300 | F75: 1300
C76: Lunch for Visitors (Sam) | D76: 2 | E76: 4000 | F76: =D76*E76 -> 8000
C77: Drinks for Visitors(Sam) | D77: 2 | E77: 1300 | F77: 2600
C78: Drink for G.M | D78: 3 | E78: 1200 | F78: 3600
B79: 22/8/2025 | C79: Lunch for CFO | D79: 1 | E79: 4000 | F79: 4000
C80: Drink for CFO | D80: 2 | E80: 1300 | F80: 2600
C81: Lunch for Nyamyumba plant team | D81: 9 | E81: 4000 | F81: 36000
C82: Drinks for GM and Mine Supervisor | D82: 1 | E82: 151000 | F82: 151000
B83: 23/8/2025 | C83: Lunch for Nyamyumba plant team | D83: 18 | E83: 4000 | F83: 72000
C84: Softdrinks for Nyamyumba plant team | D84: 18 | E84: 1300 | F84: 23400
C85: Beer for Nyamyumba plant team | D85: 18 | E85: 6000 | F85: 108000
B86: 24/8/2025 | C86: Breakfast for Football Team | D86: 25 | E86: 4000 | F86: 100000
C87: Inyange jus for Football team | D87: 27 | E87: 1300 | F87: 35100
B88: 25/8/2025 | C88: Lunch for COO | D88: 1 | E88: 4000 | F88: 4000
C89: Lunch for CFO | D89: 1 | E89: 4000 | F89: 4000
C90: Drink for CFO | D90: 1 | E90: 1300 | F90: 1300
C91: Lunch for OHMS Geotechnical | D91: 4 | E91: 4000 | F91: 16000
C92: Dinner for OHMS Geotechnical(Beef burger + Chips) | D92: 2 | E92: 10000 | F92: 20000
C93: Drink for OHMS Geotechnical (big fanta) | D93: 1 | E93: 1300 | F93: 1300
B94: 26/8/2025 | C94: Lunch for CFO | D94: 1 | E94: 4000 | F94: 4000
C95: Drink for CFO | D95: 2 | E95: 1300 | F95: 2600
C96: Lunch for OHMS Geotechnical | D96: 5 | E96: 4000 | F96: 20000
C97: Drink for OHMS Geotechnical | D97: 1 | E97: 6300 | F97: 6300
C98: Dinner for OHMS Geotechnical( Porc & chips) | D98: 2 | E98: 11000 | F98: 22000
C99: Drink for OHMS Geotechnical (juice) | D99: 2 | E99: 1300 | F99: 2600
C100: Drink for OHMS Geotechnical (small fanta) | D100: 2 | E100: 1000 | F100: 2000
B101: 27/8/2025 | C101: Lunch for CFO | D101: 1 | E101: 4000 | F101: 4000
C102: Drink for CFO | D102: 2 | E102: 1300 | F102: 2600
C103: Lunch for COO | D103: 1 | E103: 4000 | F103: 4000
C104: Drinks for COO | D104: 1 | E104: 1300 | F104: 1300
C105: Dinner for OHMS Geotechnical( Rabbit & chips) | D105: 2 | E105: 13500 | F105: 27000
C106: Drink for OHMS Geotechnical (Juice) | D106: 3 | E106: 1300 | F106: 3900
C107: Drink for OHMS Geotechnical (small fanta) | D107: 1 | E107: 1000 | F107: 1000
B108: 28/8/2025 | C108: Dinner for OHMS Geotechnical( Beef burger, fish brochette& chips) | D108: 1 | E108: 21500 | F108: 21500
C109: Drink for OHMS Geotechnical (Juice) | D109: 4 | E109: 1300 | F109: 5200
C110: Drink for OHMS Geotechnical (small fanta) | D110: 2 | E110: 1000 | F110: 2000
B111: 29/8/2025 | C111: Lunch for CFO | D111: 1 | E111: 4000 | F111: 4000
C112: Drink for CFO | D112: 2 | E112: 1300 | F112: 2600
C113: Lunch for OHMS Geotechnical | D113: 4 | E113: 4000 | F113: 16000
C114: Drink for OHMS Geotechnical (Juice) | D114: 3 | E114: 1300 | F114: 3900
C115: Drink for OHMS Geotechnical (small fanta) | D115: 1 | E115: 1000 | F115: 1000
C116: Dinner for OHMS Geotechnical( fish brochette) | D116: 5 | E116: 4000 | F116: 20000
C117: Dinner for OHMS Geotechnical( Chips) | D117: 1 | E117: 3500 | F117: 3500
C118: Drink for OHMS Geotechnical (Big fanta) | D118: 2 | E118: 3500 | F118: 7000
B119: 30/8/2025 | C119: Lunch for mixing team( upgrading plant) | D119: 20 | E119: 4000 | F119: 80000
B120: 31/8/2025 | C120: Breakfast for Football Team | D120: 30 | E120: 4000 | F120: 120000
C121: Inyange juice for Football team | D121: 25 | E121: 1300 | F121: 32500
C122: Dinner for football team | D122: 34 | E122: 4000 | F122: 136000
C123: Inyange water for football team | D123: 25 | E123: 1000 | F123: 25000
C124: Small fanta for football team | D124: 34 | E124: 1000 | F124: 34000
E127: Total | F127: =SUM(F22:F124) -> 3550500

Sheet Consumption August (hidden)
C2: CONSUMPTION SUMMARY IN AUGUST 2025
C4: CONSUMPTION | D4: NUMBER OF PEOPLE | E4: UNITY PRICE | F4: TOTAL AMOUNT
C5: Drinks for Rutongo mines visitors (Small fanta) 1000F | D5: 66 | E5: 1000 | F5: =D5*E5 -> 66000
C6: Drink for G.M | D6: 3 | E6: 1200 | F6: =D6*E6 -> 3600
C7: Drinks for Rutongo mines visitors (Plastic fanta) 1300F | D7: 181 | E7: 1300 | F7: 235300
C8: Drinks for Nyamyumba plant team (Panach) | D8: 12 | E8: 1500 | F8: 18000
C9: Drink for G.M | D9: 3 | E9: 1700 | F9: 5100
C10: Drinks for G.M | D10: 5 | E10: 2000 | F10: 10000
C11: Lunch for Finance manager Nyakabingo | D11: 1 | E11: 3000 | F11: 3000
C12: Dinner for Rutongo guest( Chips) | D12: 3 | E12: 3500 | F12: 10500
C13: Lunch and Dinner for Trainings, visitors and guest of Rutongo | D13: 692 | E13: 4000 | F13: 2768000
C14: Beer for Nyamyumba plant team | D14: 18 | E14: 6000 | F14: 108000
C15: Drink for OHMS Geotechnical | D15: 1 | E15: 6300 | F15: 6300
C16: Dinner for Tony(Chicken stew & chips) | D16: 1 | E16: 8500 | F16: 8500
C17: Dinner for Tony( 2 fish brochette ) | D17: 1 | E17: 8000 | F17: 8000
C18: Dinner for OHMS Geotechnical(Beef burger + Chips) | D18: 3 | E18: 10000 | F18: 30000
C19: Dinner for G.M (Porc) | D19: 1 | E19: 10400 | F19: 10400
C20: Dinner for OHMS Geotechnical( Porc & chips) | D20: 2 | E20: 11000 | F20: 22000
C21: Dinner for OHMS Geotechnical( Rabbit & chips) | D21: 2 | E21: 13500 | F21: 27000
C22: Drinks for for visitors (GIZ visit) | D22: 1 | E22: 17400 | F22: 17400
C23: Drinks for visitors DFS and Martina (Karangwa Erneste ) | D23: 1 | E23: 20900 | F23: 20900
C24: Dinner for OHMS Geotechnical( Beef burger, fish brochette& chips) | D24: 1 | E24: 21500 | F24: 21500
C25: Drinks for G.M and Mine Supervisor | D25: 1 | E25: 151000 | F25: 151000
E27: TOTAL | F27: =SUM(F5:F25) -> 3550500
C28: Prepared by:
C29: Reviewed by:
B33: DATE | C33: CONSUMPTION | D33: NUMBER OF PEOPLE | E33: UNITY PRICE | F33: TOTAL AMOUNT
B34: 1/8/2025 to 29/8/2025 | C34: Dinner for SDF trainings(Musha people ) 19 times | D34: 182 | E34: 4000 | F34: =D34*E34 -> 728000
B35: 4/8/2025 to 13/8/2025 | C35: Lunch for blasting assistant (8 times) | D35: 146 | E35: 4000 | F35: =D35*E35 -> 584000
B36: 2025-05-08 | C36: Lunch for CFO | D36: 1 | E36: 4000 | F36: 4000
C37: Drinks for CFO | D37: 1 | E37: 1300 | F37: 1300
C38: Lunch for visitors(Sam Ryumugabe) | D38: 2 | E38: 4000 | F38: 8000
B39: 2025-06-08 | C39: Dinner for Fannie | D39: 1 | E39: 4000 | F39: 4000
C40: Drinks for Fannie | D40: 2 | E40: 1300 | F40: 2600
C41: Lunch for CFO | D41: 1 | E41: 4000 | F41: 4000
C42: Drinks for CFO | D42: 1 | E42: 1300 | F42: 1300
B43: 2025-07-08 | C43: Lunch for CFO | D43: 1 | E43: 4000 | F43: 4000
C44: Drinks for CFO | D44: 1 | E44: 1300 | F44: 1300
C45: Lunch for visitors (GIZ visit) | D45: 15 | E45: 4000 | F45: 60000
C46: Drinks for for visitors (GIZ visit) | D46: 1 | E46: 17400 | F46: 17400
B47: 2025-08-08 | C47: Lunch for driver/musha (peter simon ) | D47: 3 | E47: 4000 | F47: 12000
C48: Drinks for Fannie | D48: 2 | E48: 1300 | F48: 2600
C49: Water for Fannie | D49: 1 | E49: 1000 | F49: 1000
B50: 2025-11-08 | C50: Drinks for Fannie | D50: 1 | E50: 1300 | F50: 1300
C51: Lunch for COO | D51: 1 | E51: 4000 | F51: 4000
C52: Drinks for COO | D52: 1 | E52: 1300 | F52: 1300
C53: Lunch for RIB Person(2) | D53: 2 | E53: 4000 | F53: 8000
C54: Drinks RIB Parson (2) | D54: 2 | E54: 1300 | F54: 2600
C55: Drinks visitors (Karangwa Erneste ) | D55: 1 | E55: 20900 | F55: 20900
C56: Dinner for G.M (Porc) | D56: 1 | E56: 10400 | F56: 10400
C57: Drinks for G.M | D57: 5 | E57: 2000 | F57: 10000
B58: 2025-12-08 | C58: Lunch Visitors (Karangwa Erneste ) | D58: 7 | E58: 4000 | F58: 28000
C59: Drinks Visitors (Karangwa Erneste ) | D59: 7 | E59: 1300 | F59: 9100
B60: 13/8/2025 | C60: Lunch training(Disciplinary and Anti-Harassment & Bullying Policies and Procedures) | D60: 29 | E60: 4000 | F60: 116000
C61: Lunch Mixing team (Upgrading plant) | D61: 32 | E61: 4000 | F61: 128000
B62: 14/8/2025 | C62: Lunch for Fannie | D62: 1 | E62: 4000 | F62: 4000
C63: Drinks for Fannie | D63: 2 | E63: 1300 | F63: 2600
C64: Lunch for CFO | D64: 1 | E64: 4000 | F64: 4000
C65: Drink for CFO | D65: 1 | E65: 1300 | F65: 1300
B66: 16/8/2025 | C66: Lunch for Football team | D66: 40 | E66: 4000 | F66: 160000
C67: Drinks for Football team | D67: 40 | E67: 1300 | F67: 52000
B68: 18/8/2025 | C68: Lunch for training(MRM collaboration ) | D68: 16 | E68: 4000 | F68: 64000
C69: Lunch for Visitors (sam ) | D69: 2 | E69: 4000 | F69: 8000
C70: Dinner for Visitors (sam ) | D70: 2 | E70: 1300 | F70: 2600
C71: Dinner for Tony (Chicken stew & chicken) | D71: 1 | E71: 8500 | F71: 8500
C72: Drink for G.M | D72: 3 | E72: 1700 | F72: 5100
C73: Dinner G.M (rabbit) | D73: 1 | E73: 10000 | F73: 10000
C74: Lunch for COO | D74: 1 | E74: 4000 | F74: 4000
B75: 19/8/2025 | C75: Lunch for Tony | D75: 1 | E75: 4000 | F75: 4000
C76: Drink for Tony | D76: 2 | E76: 1300 | F76: 2600
C77: Dinner for Tony | D77: 1 | E77: 8000 | F77: 8000
C78: Drink for Tony | D78: 1 | E78: 1300 | F78: 1300
B79: 20/8/2025 | C79: Lunch forVisitors (Sam) | D79: 2 | E79: 4000 | F79: 8000
C80: Drink for Visitors (Sam) | D80: 4 | E80: 1300 | F80: 5200
C81: Lunch for mixing team( upgrading plant) | D81: 15 | E81: 4000 | F81: 60000
C82: Dinner for Nyamyumba plant team | D82: 12 | E82: 4000 | F82: 48000
C83: Drinks for Nyamyumba plant team | D83: 12 | E83: 1500 | F83: 18000
B84: 21/8/2025 | C84: Lunch for Nyamyumba plant team | D84: 15 | E84: 4000 | F84: 60000
C85: Drinks for Nyamyumba plant team | D85: 15 | E85: 1300 | F85: 19500
C86: Lunch for Finance manager Nyakabingo | D86: 1 | E86: 3000 | F86: 3000
C87: Drinks for Finance manager Nyakabingo | D87: 1 | E87: 1300 | F87: 1300
C88: Lunch for Visitors (Sam) | D88: 2 | E88: 4000 | F88: 8000
C89: Drinks for Visitors(Sam) | D89: 2 | E89: 1300 | F89: 2600
C90: Drink for G.M | D90: 3 | E90: 1200 | F90: 3600
B91: 22/8/2025 | C91: Lunch for CFO | D91: 1 | E91: 4000 | F91: 4000
C92: Drink for CFO | D92: 2 | E92: 1300 | F92: 2600
C93: Lunch for Nyamyumba plant team | D93: 9 | E93: 4000 | F93: 36000
C94: Drinks for GM and Mine Supervisor | D94: 1 | E94: 151000 | F94: 151000
B95: 23/8/2025 | C95: Lunch for Nyamyumba plant team | D95: 18 | E95: 4000 | F95: 72000
C96: Softdrinks for Nyamyumba plant team | D96: 18 | E96: 1300 | F96: 23400
C97: Beer for Nyamyumba plant team | D97: 18 | E97: 6000 | F97: 108000
B98: 24/8/2025 | C98: Breakfast for Football Team | D98: 25 | E98: 4000 | F98: 100000
C99: Inyange jus for Football team | D99: 27 | E99: 1300 | F99: =D99*E99 -> 35100
B100: 25/8/2025 | C100: Lunch for COO | D100: 1 | E100: 4000 | F100: 4000
C101: Lunch for CFO | D101: 1 | E101: 4000 | F101: 4000
C102: Drink for CFO | D102: 1 | E102: 1300 | F102: 1300
C103: Lunch for OHMS Geotechnical | D103: 4 | E103: 4000 | F103: 16000
C104: Dinner for OHMS Geotechnical(Beef burger + Chips) | D104: 2 | E104: 10000 | F104: 20000
C105: Drink for OHMS Geotechnical (big fanta) | D105: 1 | E105: 1300 | F105: 1300
B106: 26/8/2025 | C106: Lunch for CFO | D106: 1 | E106: 4000 | F106: 4000
C107: Drink for CFO | D107: 2 | E107: 1300 | F107: 2600
C108: Lunch for OHMS Geotechnical | D108: 5 | E108: 4000 | F108: 20000
C109: Drink for OHMS Geotechnical | D109: 1 | E109: 6300 | F109: 6300
C110: Dinner for OHMS Geotechnical( Porc & chips) | D110: 2 | E110: 11000 | F110: 22000
C111: Drink for OHMS Geotechnical (juice) | D111: 2 | E111: 1300 | F111: 2600
C112: Drink for OHMS Geotechnical (small fanta) | D112: 2 | E112: 1000 | F112: 2000
B113: 27/8/2025 | C113: Lunch for CFO | D113: 1 | E113: 4000 | F113: 4000
C114: Drink for CFO | D114: 2 | E114: 1300 | F114: 2600
C115: Lunch for COO | D115: 1 | E115: 4000 | F115: 4000
C116: Drinks for COO | D116: 1 | E116: 1300 | F116: 1300
C117: Dinner for OHMS Geotechnical( Rabbit & chips) | D117: 2 | E117: 13500 | F117: 27000
C118: Drink for OHMS Geotechnical (Juice) | D118: 3 | E118: 1300 | F118: 3900
C119: Drink for OHMS Geotechnical (small fanta) | D119: 1 | E119: 1000 | F119: 1000
B120: 28/8/2025 | C120: Dinner for OHMS Geotechnical( Beef burger, fish brochette& chips) | D120: 1 | E120: 21500 | F120: 21500
C121: Drink for OHMS Geotechnical (Juice) | D121: 4 | E121: 1300 | F121: 5200
C122: Drink for OHMS Geotechnical (small fanta) | D122: 2 | E122: 1000 | F122: 2000
B123: 29/8/2025 | C123: Lunch for CFO | D123: 1 | E123: 4000 | F123: 4000
C124: Drink for CFO | D124: 2 | E124: 1300 | F124: 2600
C125: Lunch for OHMS Geotechnical | D125: 4 | E125: 4000 | F125: 16000
C126: Drink for OHMS Geotechnical (Juice) | D126: 3 | E126: 1300 | F126: 3900
C127: Drink for OHMS Geotechnical (small fanta) | D127: 1 | E127: 1000 | F127: 1000
C128: Dinner for OHMS Geotechnical( fish brochette) | D128: 5 | E128: 4000 | F128: 20000
C129: Dinner for OHMS Geotechnical( Chips) | D129: 1 | E129: 3500 | F129: 3500
C130: Drink for OHMS Geotechnical (Big fanta) | D130: 2 | E130: 3500 | F130: 7000
B131: 30/8/2025 | C131: Lunch for mixing team( upgrading plant) | D131: 20 | E131: 4000 | F131: 80000
B132: 31/8/2025 | C132: Breakfast for Football Team | D132: 30 | E132: 4000 | F132: 120000
C133: Inyange juice for Football team | D133: 25 | E133: 1300 | F133: 32500
C134: Dinner for football team | D134: 34 | E134: 4000 | F134: 136000
C135: Inyange water for football team | D135: 25 | E135: 1000 | F135: 25000
C136: Small fanta for football team | D136: 34 | E136: 1000 | F136: 34000
E139: Total | F139: =SUM(F34:F136) -> 3550500

Sheet Consumption September
C3: CONSUMPTION SUMMARY IN SEPTEMBER 2025
C5: CONSUMPTION | D5: NUMBER OF PEOPLE | E5: UNITY PRICE | F5: TOTAL AMOUNT
C6: Banana for Football team & Rescue | D6: 92 | E6: 250 | F6: =D6*E6 -> 23000
C7: Softdrinks for RM visitors(1000frw) | D7: 222 | E7: 1000 | F7: =D7*E7 -> 222000
C8: Softdrinks for RM visitors(1300frw) | D8: 145 | E8: 1300 | F8: 188500
C9: Softdrinks for RM visitors(1300frw) | D9: 3 | E9: 1500 | F9: 4500
C10: Lunch for Visitor from nyakabingo | D10: 11 | E10: 3000 | F10: 33000
C11: Lunch for Trainings | D11: 1165 | E11: 4000 | F11: 4660000
C12: Toilet paper (2 packs) | D12: 2 | E12: 4500 | F12: 9000
C13: Dinner for Ivanis(Kawunga & beef) | D13: 1 | E13: 5000 | F13: 5000
C14: Dinner for Nyakabingo visitor(Pork & potatoes) | D14: 1 | E14: 6700 | F14: 6700
C15: Dinner for nyakabingo visitor(Pork & visitor) | D15: 1 | E15: 7400 | F15: 7400
C16: Dinner for fanie(Chips & beef brochette) | D16: 1 | E16: 7500 | F16: 7500
C17: Dinner for Ivanis(Kawunga & Pork) | D17: 3 | E17: 8500 | F17: 25500
C18: Dinner for Fanie (1kg pork & chips) | D18: 2 | E18: 9500 | F18: 19000
C19: Dinner for Fanie(Fish burger& chips) | D19: 11 | E19: 10000 | F19: 110000
C20: Dinner for Frans(Pork, rice & chips) | D20: 1 | E20: 11500 | F20: 11500
C21: Dinner for Frans(Fish Veg and chips) | D21: 9 | E21: 12000 | F21: 108000
C22: Dinner for chandela (Half chicken & chips) | D22: 6 | E22: 13500 | F22: 81000
C23: Accomodation for Intoduction to blasting (15 days) | D23: 120 | E23: 15000 | F23: 1800000
C24: Dinner for Frans(Whole chicken &chips with rice) | D24: 1 | E24: 20000 | F24: 20000
C25: Snacks for Explosives inspection | D25: 1 | E25: 40000 | F25: 40000
C26: Dinner and Drinks for GM visitor(Vice mayor) | D26: 1 | E26: 149200 | F26: 149200
C27: Drinks for Recognition of T28 and Amahame winner | D27: 1 | E27: 884600 | F27: 884600
E29: TOTAL | F29: =SUM(F6:F27) -> 8415400
C31: Prepared by: Akayezu M. Francoise
C33: Reviewed by: Charles Kyamiza
B36: DATE | C36: CONSUMPTION | D36: NUMBER OF PEOPLE | E36: UNITY PRICE | F36: TOTAL AMOUNT
B37: 2025-01-09 | C37: Lunch for Introduction to blasting (15 days) | D37: 158 | E37: 4000 | F37: =D37*E37 -> 632000
C38: Dinner for Intoduction to blasting (12 days) | D38: 96 | E38: 4000 | F38: =D38*E38 -> 384000
C39: Accomodation for Intoduction to blasting (15 days) | D39: 120 | E39: 15000 | F39: 1800000
C40: Lunch for HIRA training (2 days) | D40: 30 | E40: 4000 | F40: 120000
C41: Dinner for RTB/SDF training | D41: 135 | E41: 4000 | F41: 540000
C42: Lunch for COO | D42: 1 | E42: 4000 | F42: 4000
C43: Drinks for fanie | D43: 1 | E43: 1300 | F43: 1300
C44: Dinner for Fanie(Chicken stew& chips) | D44: 1 | E44: 10000 | F44: 10000
C45: Dinner for Frans(Fish veg & chips with rice) | D45: 1 | E45: 12000 | F45: 12000
C46: Drinks for fanie | D46: 1 | E46: 1500 | F46: 1500
B47: 2025-02-09 | C47: Lunch for CFO | D47: 1 | E47: 4000 | F47: 4000
C48: Drink for CFO | D48: 1 | E48: 1300 | F48: 1300
C49: Drinks for fanie | D49: 1 | E49: 1300 | F49: 1300
C50: Lunch for COO | D50: 1 | E50: 4000 | F50: 4000
C51: Drinks for COO | D51: 1 | E51: 1300 | F51: 1300
C52: Drinks for Frans | D52: 1 | E52: 1300 | F52: 1300
C53: Dinner for Frans(Whole chicken &chips with rice) | D53: 1 | E53: 20000 | F53: 20000
C54: Drinks for Frans | D54: 1 | E54: 1000 | F54: 1000
B55: 2025-03-09 | C55: Lunch for LOTO training | D55: 15 | E55: 4000 | F55: 60000
C56: Lunch for CFO & olivier | D56: 2 | E56: 4000 | F56: 8000
C57: Drinks for CFO & olivier | D57: 2 | E57: 1300 | F57: 2600
C58: Dinner for Frans(1kg pork & chips) | D58: 1 | E58: 9500 | F58: 9500
C59: Dinner for Fanie (1kg pork & chips) | D59: 1 | E59: 9500 | F59: 9500
C60: Drinks for Frans & Fanie | D60: 2 | E60: 1300 | F60: 2600
B61: 2025-04-09 | C61: Lunch for Working at Height Training | D61: 14 | E61: 4000 | F61: 56000
C62: Lunch for Talent Management System training (HR) | D62: 10 | E62: 4000 | F62: 40000
C63: Lunch for Emloyee(CFO) | D63: 3 | E63: 4000 | F63: 12000
C64: Drinks for Emloyee(CFO) | D64: 3 | E64: 1300 | F64: 3900
C65: Lunch for Jo danniel | D65: 1 | E65: 4000 | F65: 4000
C66: Lunch for Visitor from nyakabingo | D66: 2 | E66: 3000 | F66: 6000
C67: Dinner for Fanie(Fish burger& chips) | D67: 1 | E67: 10000 | F67: 10000
C68: Dinner for Frans(Fish Veg and chips) | D68: 1 | E68: 12000 | F68: 12000
C69: Drinks for Frans & Fanie | D69: 3 | E69: 1300 | F69: 3900
C70: Inyange water box (2 times) | D70: 24 | E70: 1000 | F70: 24000
B71: 2025-05-09 | C71: Lunch for rescue training refresher | D71: 17 | E71: 4000 | F71: 68000
C72: Banana for Rescue | D72: 32 | E72: 250 | F72: 8000
C73: Lunch for CFO & olivier | D73: 2 | E73: 4000 | F73: 8000
C74: Drinks for CFO & olivier | D74: 2 | E74: 1300 | F74: 2600
C75: Dinner for Fanie(Fish burger& chips) | D75: 1 | E75: 10000 | F75: 10000
C76: Dinner for Frans(Fish Veg and chips) | D76: 1 | E76: 12000 | F76: 12000
C77: Drinks for RTB/SDF trainer meeting | D77: 15 | E77: 1300 | F77: 19500
B78: 2025-06-09 | C78: Meals for Recognition of T28 and Amahame winner | D78: 192 | E78: 4000 | F78: 768000
C79: Drinks for Recognition of T28 and Amahame winner | D79: 1 | E79: 884600 | F79: 884600
C80: Dinner for Fanie(Fish burger& chips) | D80: 1 | E80: 10000 | F80: 10000
C81: Dinner for Frans(Fish Veg and chips) | D81: 1 | E81: 12000 | F81: 12000
C82: Drinks for Frans & Fanie | D82: 2 | E82: 1500 | F82: 3000
B83: 2025-08-09 | C83: Lunch for Incident/Accident investigation training (2days) | D83: 26 | E83: 4000 | F83: 104000
C84: Lunch for COO | D84: 1 | E84: 4000 | F84: 4000
C85: Drinks for COO | D85: 1 | E85: 1300 | F85: 1300
C86: Lunch for Ivanis(MRM) | D86: 1 | E86: 4000 | F86: 4000
C87: Drinks for ivanis(MRM) | D87: 1 | E87: 1300 | F87: =D88*E87 -> 1300
C88: Drinks for CFO | D88: 1 | E88: 1300 | F88: =D89*E88 -> 1300
B89: 2025-09-09 | C89: Drinks for Jo dannnel | D89: 1 | E89: 1300 | F89: 1300
C90: Lunch for Ivanis(MRM) | D90: 1 | E90: 4000 | F90: 4000
C91: Drinks for ivanis(MRM) | D91: 1 | E91: 1300 | F91: 1300
C92: Lunch for visitor (Ryumugabe) | D92: 5 | E92: 4000 | F92: 20000
C93: Drinks for visitor (Ryumugabe) | D93: 5 | E93: 1300 | F93: 6500
C94: Dinner for Fanie(Fish burger& chips) | D94: 1 | E94: 10000 | F94: 10000
C95: Dinner for Frans(Pork, rice & chips) | D95: 1 | E95: 11500 | F95: 11500
C96: Drinks for Frans & Fanie | D96: 2 | E96: 1300 | F96: 2600
B97: 2025-10-09 | C97: Lunch for Safety represantative training(2 days) | D97: 26 | E97: 4000 | F97: 104000
C98: Lunch for WVR Side visit (Environment) | D98: 12 | E98: 4000 | F98: 48000
C99: Drinks for WVR Side visit (Environment) | D99: 12 | E99: 1300 | F99: 15600
C100: Lunch for CFO | D100: 1 | E100: 4000 | F100: 4000
C101: Drink for CFO | D101: 2 | E101: 1300 | F101: 2600
B102: 2025-11-09 | C102: Lunch for COO | D102: 1 | E102: 4000 | F102: =D102*E102 -> 4000
C103: Drinks for COO | D103: 1 | E103: 1300 | F103: 1300
C104: Dinner for Fanie & frans(Fish burger& chips) | D104: 2 | E104: 10000 | F104: 20000
C105: Drinks for Frans & Fanie | D105: 2 | E105: 1300 | F105: 2600
B106: 2025-12-09 | C106: Lunch for Ivanis(MRM) | D106: 1 | E106: 4000 | F106: 4000
C107: Drinks for ivanis(MRM) | D107: 1 | E107: 1300 | F107: 1300
C108: Lunch for Upgrading plant (mixing team) | D108: 25 | E108: 4000 | F108: 100000
C109: Dinner for Fanie & frans(2 chicken & pasta) | D109: 2 | E109: 10000 | F109: 20000
C110: Drinks for Frans & Fanie | D110: 2 | E110: 1300 | F110: 2600
B111: 13/9/2025 | C111: Breakfast for Rutongo Football team | D111: 30 | E111: 4000 | F111: 120000
C112: Banana for Rutongo Football team | D112: 30 | E112: 250 | F112: 7500
B113: 14/9/2025 | C113: Dinner for Fanie & frans(2 fish burger& chips) | D113: 2 | E113: 10000 | F113: 20000
C114: Drinks Fanie | D114: 1 | E114: 1300 | F114: 1300
B115: 15/9/2025 | C115: Lunch for training Miner for non Miners(2 days) | D115: 36 | E115: 4000 | F115: 144000
C116: Lunch for Visitor (Benoni) | D116: 1 | E116: 3000 | F116: 3000
C117: Dinner for Frans(Fish and rice) | D117: 1 | E117: 12000 | F117: 12000
C118: Drinks for Frans | D118: 1 | E118: 1000 | F118: 1000
B119: 16/7/2025 | C119: Lunch for Talent Management System (HOD) | D119: 15 | E119: 4000 | F119: 60000
C120: Drinks for Talent Management System (HOD) | D120: 3 | E120: 1300 | F120: 3900
C121: Toilet paper (2 packs) | D121: 2 | E121: 4500 | F121: 9000
C122: Drinks Fanie | D122: 1 | E122: 1300 | F122: 1300
C123: Dinner for chandela (Fish stew & chips) | D123: 1 | E123: 12000 | F123: 12000
C124: Drinks for chandela | D124: 1 | E124: 1300 | F124: 1300
C125: Dinner and Drinks for GM visitor(Vice mayor) | D125: 1 | E125: 149200 | F125: 149200
B126: 17/9/2025 | C126: Lunch for Defencive driving training(2 days) | D126: 20 | E126: 4000 | F126: 80000
C127: Lunch for E&C staff from all mine | D127: 10 | E127: 4000 | F127: 40000
C128: Drinks for E&C staff from all mine | D128: 9 | E128: 1000 | F128: 9000
C129: Lunch for Nyamyumba plant shutdown(42 people) 3 days | D129: 126 | E129: 4000 | F129: 504000
C130: Drinks for Nyamyumba plant shutdown(42 people) 3 days | D130: 126 | E130: 1000 | F130: 126000
C131: Drinks for chandela | D131: 3 | E131: 1300 | F131: 3900
C132: Dinner for chandela (Half chicken & chips) | D132: 1 | E132: 13500 | F132: 13500
B133: 18/9/2025 | C133: Snacs for Explosives inspection | D133: 1 | E133: 40000 | F133: 40000
C134: Lunch for COO | D134: 1 | E134: 4000 | F134: 4000
C135: Drinks for COO | D135: 1 | E135: 1300 | F135: 1300
C136: Drinks for chandela | D136: 1 | E136: 1300 | F136: 1300
C137: Dinner for chandela (Beef stew & chips) | D137: 1 | E137: 12000 | F137: 12000
C138: Dinner for lizelle(Chicken stew & chips) | D138: 1 | E138: 13500 | F138: 13500
C139: Dinner for fanie(Chips & beef brochette) | D139: 1 | E139: 7500 | F139: 7500
B140: 19/9/2025 | C140: Lunch for bobcat refreshment (2 days) | D140: 16 | E140: 4000 | F140: 64000
C141: Lunch for 2 visitors( Fred) | D141: 2 | E141: 4000 | F141: 8000
C142: Drinks for 2 visitors( Fred) | D142: 2 | E142: 1300 | F142: 2600
C143: Drinks for chandela | D143: 2 | E143: 1300 | F143: 2600
C144: Dinner for chandela (Half chicken & chips) | D144: 1 | E144: 13500 | F144: 13500
B145: 20/9/2025 | C145: Drinks for chandela | D145: 2 | E145: 1300 | F145: 2600
B146: 22/9/2025 | C146: Lunch for COO | D146: 1 | E146: 4000 | F146: 4000
C147: Drinks for COO | D147: 1 | E147: 1300 | F147: 1300
C148: Lunch for Nyakabingo visitor | D148: 2 | E148: 3000 | F148: 6000
C149: Drinks for Nyakabingo visitor | D149: 2 | E149: 1300 | F149: 2600
C150: Dinner for Ivanis(Half chicken & chips) | D150: 1 | E150: 13500 | F150: 13500
C151: Drinks for Ivanis | D151: 1 | E151: 1000 | F151: 1000
C152: Dinner for nyakabingo visitor(Pork & visitor) | D152: 1 | E152: 7400 | F152: 7400
B153: 23/9/2025 | C153: Lunch for Nyakabingo visitor | D153: 2 | E153: 3000 | F153: 6000
C154: Drinks for Nyakabingo visitor | D154: 2 | E154: 1300 | F154: 2600
C155: Dinner for Nyakabingo visitor | D155: 2 | E155: 3000 | F155: 6000
C156: Drinks for Nyakabingo visitor | D156: 2 | E156: 1300 | F156: 2600
C157: Dinner for Ivanis(Half chicken & chips) | D157: 1 | E157: 13500 | F157: 13500
C158: Drinks for Ivanis | D158: 1 | E158: 1300 | F158: 1300
B159: 24/9/2025 | C159: Lunch for COO | D159: 1 | E159: 4000 | F159: 4000
C160: Drinks for COO | D160: 1 | E160: 1300 | F160: 1300
C161: Lunch for RMB visitor (Karangwa) | D161: 7 | E161: 4000 | F161: 28000
C162: Drinks for RMB visitor (Karangwa) | D162: 7 | E162: 1300 | F162: 9100
C163: Lunch for Nyakabingo visitor | D163: 2 | E163: 3000 | F163: 6000
C164: Drinks for Nyakabingo visitor | D164: 2 | E164: 1300 | F164: 2600
C165: Dinner for Nyakabingo visitor(Pork & potatoes) | D165: 1 | E165: 6700 | F165: 6700
C166: Drinks for Nyakabingo visitor | D166: 2 | E166: 1300 | F166: 2600
C167: Dinner for Ivanis(Kawunga & beef) | D167: 1 | E167: 5000 | F167: 5000
C168: Drinks for Ivanis | D168: 1 | E168: 1300 | F168: 1300
C169: Lunch for Upgrading plant (mixing team) | D169: 25 | E169: 4000 | F169: 100000
B170: 25/9/2025 | C170: Dinner for Ivanis(Half chicken & Chips) | D170: 1 | E170: 13500 | F170: 13500
C171: Drinks for Ivanis | D171: 1 | E171: 1300 | F171: 1300
B172: 26/9/2025 | C172: Dinner for Ivanis(Kawunga & fish vegetable) | D172: 1 | E172: 12000 | F172: 12000
C173: Drinks for Ivanis | D173: 1 | E173: 1300 | F173: 1300
B174: 27/9/2025 | C174: Breakfast for Rutongo Football team | D174: 30 | E174: 4000 | F174: 120000
C175: Bananas | D175: 30 | E175: 250 | F175: 7500
C176: Dinner for Rutongo football team | D176: 60 | E176: 4000 | F176: 240000
C177: Small fanta | D177: 60 | E177: 1000 | F177: 60000
C178: Juice for Rutongo football team | D178: 36 | E178: 1300 | F178: 46800
C179: Dinner for Ivanis(Kawunga, sombe & Pork) | D179: 1 | E179: 8500 | F179: 8500
C180: Drinks for Ivanis | D180: 1 | E180: 1300 | F180: 1300
B181: 28/9/2025 | C181: Dinner for Ivanis(Kawunga & fish vegetable) | D181: 1 | E181: 12000 | F181: 12000
C182: Drinks for Ivanis | D182: 1 | E182: 1300 | F182: 1300
B183: 29/9/2025 | C183: Dinner for Ivanis(Kawunga & Pork) | D183: 1 | E183: 8500 | F183: 8500
C184: Drinks for Ivanis | D184: 1 | E184: 1300 | F184: 1300
B185: 30/9/2025 | C185: Lunch for musha visitor (MRM) | D185: 6 | E185: 4000 | F185: 24000
C186: Lunch for COO | D186: 1 | E186: 4000 | F186: 4000
C187: Drinks for COO | D187: 1 | E187: 1300 | F187: 1300
C188: Dinner for Ivanis(Kawunga & Pork) | D188: 1 | E188: 8500 | F188: 8500
C189: Drinks for Ivanis | D189: 1 | E189: 1300 | F189: 1300
F191: =SUM(F37:F189) -> 8415400

Sheet Sheet1 (hidden)
B2: Names | C2: Position | D2: Course | E2: Oversees or In country | F2: when (year) | G2: How Much (cost)
B3: Murorunkwere Epiphanie | C3: Site manager | D3: Masters in Environment and development studies | E3: In country | F3: 2022 | G3: 1900000
B4: Uwineza Francine | C4: General Accauntant | D4: Masters in business adminitration | E4: In country | F4: 2024 | G4: 2000000
B5: Furaha Liberathe | C5: Stores & Fleet Coordinator | D5: Bachelor in Business management | E5: In country | F5: on going | G5: 1700000
B6: Tuyishimire Belise | C6: Accounting Clerk | D6: Bachelor in Accaunting | E6: In country | F6: 2025 | G6: 1980000
B7: Umurerwa Blandine | C7: Environmental Officer | D7: Masters in Environment and development studies | E7: In country | F7: 2025 | G7: 1850000
B8: Charles Kyamiza | C8: HR Manager | D8: HRM Certification | E8: In country | F8: 2024 | G8: 1500000
B9: Nsengimana Erneste | C9: HR Coordinator | D9: HRM Certification | E9: In country | F9: 2024 | G9: 1500000
